Workbook

Sheet OPFOK OUDERDIEREN
E1: Rekenmodel Vee-combistof - pluimvee (V2.0, 15 maart 2021) | J1: Berekenen van het reductiepercentage van combinaties van fijnstof reducerende technieken
H3: TOELICHTING GEBRUIK REKENMODEL (Er is online ook een handleiding beschikbaar).
E4: invullen | F4: naam | H4: Bij alle GEEL gekleurde vakjes dient een keuze gemaakt te worden. Ga op het vakje staan, klik rechts naast vakje en kies een optie.
E5: invullen | F5: adres | H5: De gerealiseerde reductiepercentages staan in GROENE blokjes vermeld. Helemaal rechts is het reductiepercentage van de combinatie van de fijnstofreducerende
D6: KIES HENNEN of HANEN | E6: =TODAY() -> 2021-03-12 | F6: datum | H6: technieken weergegeven. Als combinaties niet mogelijk of zinvol zijn, verschijnt er tekst in ROOD. Bij 'niet mogelijk' dient u keuze(s) aan te passen.
D7: HENNEN | H7: Bij warmtewisselaar en stoffilter kan de ventilatiehoeveelheid door een techniek aangepast worden met de pijltjes omhoog/omlaag.
D8: HANEN
C10: ̌ | H10: =IF(F14+H16=0,"Geen warmtewisselaar","Warmtewisselaar") -> Geen warmtewisselaar | Q10: Reductiepercentage PM10
H11: =IF(H10="warmtewisselaar","Reductiepercentage WW 80%"," ") ->  | J11: =IF(L20="geen techniek",F14+H16,IF(J13="ja",0,F14+H16)) -> 0 | K11: m3/uur | L11: =IF(L20="Biofilter",IF(H15="ja",IF(J14>0,"Deze combinatie met WW stoffilter is toepasbaar, maar niet zinvol"," ")," "),IF(L20="bio wasser 60%",IF(H15="ja",IF(J14>0,"Deze combinatie met WW stoffilter is toepasbaar, maar niet zinvol"," ")," "),IF(L20="bio wasser 75%",IF(H15="ja",IF(J14>0,"Deze combinatie met WW stoffilter is toepasbaar, maar niet zinvol"," ")," ")," "))) -> 
H12: =ROUND(IF(H15="nee",'wisselend debiet_opfok'!$O$8*(1-E23),IF(H15="ja",'wisselend debiet_opfok'!$Q$8*(1-E23))),3) -> 0 | I12: ="Lucht WW door overige techniek?" -> Lucht WW door overige techniek?
E13: Stal voor opfok | H13: Warmtewisselaar met stoffilter? | J13: NEE
D14: 0 | E14: vleeskuikenouderdieren | F14: =MAX(0,IF(D14+D19>J25*100,(J25-F20),D14/100)) -> 0 | G14: m3/uur | H14: =IF(F14=0," ","Reductie% stoffilter 99%") ->  | J14: =IF(L20="geen techniek",0,IF(J13="ja",F14+H16,0)) -> 0 | K14: m3/uur
D15: 75 | F15: % t.o.v. maximum | H15: NEE | I15: =IF(J13="nee"," ",IF(L20="geen techniek",IF(J13="ja","Indien 'geen techniek', dan is er geen luchtstroom")," ")) -> 
F16: =F14/J25 -> 0 | G16: =IF(F14>0,"Reset: Zet ventilatie door WW en/of stoffilter in 1 klik op 0 m3",IF(F20>0,"Zet ventilatie door WW en/of stoffilter in 1 klik op 0 m3"," ")) ->  | M16: =IF(F14>0,IF(L20="Luchtconditioneringsunit","Twee keer eenzelfde type techniek in de uitgaande luchtstroom is niet logisch"," ")," ") -> 
I17: =IF(J11=0," ",IF(L20="chemische wasser 35%","Alle lucht moet door overige techniek vanwege ammoniak en/of geur",IF(L20="chemische wasser 70%","Alle lucht moet door overige techniek vanwege ammoniak en/of geur",IF(L20="Bio wasser 60%","Alle lucht moet door overige techniek vanwege ammoniak en/of geur",IF(L20="Bio wasser 75%","Alle lucht moet door overige techniek vanwege ammoniak en/of geur",IF(L20="Biofilter","Alle lucht moet door overige techniek vanwege ammoniak en/of geur"," ")))))) -> 
E18: Staltechniek | H18: =IF(F20=0,"Geen stoffilter","Stoffilter") -> Geen stoffilter | L18: Overige technieken
D19: 0 | E19: GEEN STALTECHNIEK | H19: =IF(F20=0," ","Reductie% stoffilter 99%") ->  | L19: =IF(L20="chemische wasser 35%","Potentieel reductie: 35%",IF(L20="chemische wasser 70%","Potentieel reductie: 70%",IF(L20="bio wasser 60%","Potentieel reductie: 60%",IF(L20="bio wasser 75%","Potentieel reductie: 75%",IF(L20="biofilter","Potentieel reductie: 80%",IF(L20="waterluchtwassysteem","Potentieel reductie: 33%",IF(L20="droogfilterwand","Potentieel reductie: 40%",IF(L20="ionisatiefilter","Potentieel reductie: 57%",IF(L20="luchtconditioneringsunit","Potentieel reductie: 80%"," "))))))))) ->  | M19: =IF(F20=0," ",IF(L20="chemische wasser 35%","Alle lucht moet door overige techniek vanwege ammoniak en/of geur",IF(L20="chemische wasser 70%","Alle lucht moet door overige techniek vanwege ammoniak en/of geur",IF(L20="Bio wasser 60%","Alle lucht moet door overige techniek vanwege ammoniak en/of geur",IF(L20="Bio wasser 75%","Alle lucht moet door overige techniek vanwege ammoniak en/of geur",IF(L20="Biofilter","Alle lucht moet door overige techniek vanwege ammoniak en/of geur"," ")))))) -> 
E20: =IF(E19="geen staltechniek"," ",IF(E19="negatieve ionisatie",IF(E14="vleeskuikens"," ","Deze techniek kan alleen bij vleeskuikens"),IF(E19="strooiselschuif",IF(E14="leghennen voliere"," ","Deze techniek kan alleen bij leghennen voliere"),IF(E19="oliefilm bij voliere dmv leidingen",IF(E14="leghennen voliere"," ",IF(E14="opfok leghennen voliere"," ",IF(E14="Vleeskuikenouderdieren voliere"," ","Deze techniek kan alleen bij (opfok)leghennen en vleeskuikenouderdieren voliere"))),IF(E19="strooiselschuif icm oliefilm bij voliere dmv leidingen",IF(E14="leghennen voliere"," ","Deze techniek kan alleen bij leghennen voliere"),IF(E19="oliefilm dmv olierobot",IF(E14="opfok leghennen grondhuisvesting"," ",IF(E14="leghennen grondhuisvesting"," ",IF(E14="vleeskuikenouderdieren grondhuisvesting"," ","Deze techniek kan alleen bij (opfok)leghennen en vleeskuikenouderdieren grondhuisvesting")))," ")))))) ->  | F20: =MAX(0,IF(D14+D19>J25*100,(J25*100-D14)/100,D19/100)) -> 0 | G20: m3/uur | H20: =ROUND(IF(F14=0,'wisselend debiet_opfok'!$M$8*(1-E23),'wisselend debiet_opfok'!$P$8*(1-E23)),3) -> 0 | L20: GEEN TECHNIEK
F21: =J25-F14-F20 -> 4.86 | G21: m3/uur | J21: =IF(L20="geen techniek",0,F21) -> 0 | K21: m3/uur | L21: Reductiepercentage overige techniek | M21: =IF(L20="luchtconditioneringsunit"," ",IF(L20="geen techniek"," ",IF(L20="chemische wasser 35%"," ",IF(L20="chemische wasser 70%"," ",IF(L20="bio wasser 60%"," ",IF(L20="bio wasser 75%"," ",IF(L20="waterluchtwassysteem"," ",IF(L25="biofilter"," ",IF(L20="Droogfilterwand"," ",IF(L20="ionisatiefilter",IF(E19="ionisatie d.m.v. koolstofborsteltjes","Combinatie van ionisatietechnieken is niet zinvol",IF(E19="ionisatie d.m.v. koolstof-borsteltjes icm strooiselschuif","Combinatie van ionisatietechnieken is niet zinvol"," "))," ")))))))))) -> 
E22: Reductiepercentage in stal | F22: Max. ventilatiedebiet m3/d/uur | L22: =IF(M16="Twee keer eenzelfde type techniek in de uitgaande luchtstroom is niet logisch","error",IF(F24="Niet alle lucht gaat door luchtconditioneringsunit, dus niet combineren met droog stoffilter","error",(IF(I17="Alle lucht moet door overige techniek vanwege ammoniak en/of geur","error",IF(M19="Alle lucht moet door overige techniek vanwege ammoniak en/of geur","error",IF(L11="Combinatie met warmtewisselaar is niet toegestaan","error",IF(F20=0,IF(J13="ja",'wisselend debiet_opfok'!$U$8*(1-E23),'wisselend debiet_opfok'!$S$8*(1-E23)),IF(F14=0,'wisselend debiet_opfok'!$T$8*(1-E23),IF(F14>0,IF(F20>0,IF(J14=0,'wisselend debiet_opfok'!$V$8*(1-E23),IF(J14>0,'wisselend debiet_opfok'!$U$8*(1-E23),'wisselend debiet_opfok'!$W$8*(1-E23))))))))))))) -> 0 | Q22: =ROUNDDOWN(100%-(1-E23)+(H20+H12)+L22,3) -> 0
E23: =IF(E19="ionisatieSYSTEEM MET NEGATIEVE CORONADRADEN",49%,IF(E19="ionisatie d.m.v. koolstofborsteltjes",31%,IF(E19="ionisatie d.m.v. coronadraden",52%,IF(E19="ionisatie d.m.v. ionisatie-units",16%,0)))) -> 0 | G23: =J11+J14+J21+J23 -> 4.86 | J23: =F20+F21-H16-J21 -> 4.86 | K23: m3/uur
F24: =IF(L20="Luchtconditioneringsunit",IF(H20>0,"Niet alle lucht gaat door luchtconditioneringsunit, dus niet combineren met droog stoffilter"," ")," ") -> 
D25: GEEN STALTECHNIEK | H25: Maximale ventilatie in de stal | J25: ='Max waarden'!$B$8 -> 4.86 | K25: m3/uur
D26: IONISATIE d.m.v. KOOLSTOFBORSTELTJES | J26: =IF(G23<>J25,"Optelsom debiet klopt niet"," ") -> 
E27: Gemaakt in opdracht van het ministerie van Infrastructuur en Waterstaat
D32: =IF(H19="zonder stoffilter",IF(D33="opfok leghennen",IF(H12="warmtewisselaar 13%",0.2,IF(H12="warmtewisselaar 31%",0.43,IF(H12="warmtewisselaar 37%",0.55,IF(H12="warmtewisselaar 50%",0.78)))),IF(D33="leghennen",IF(H12="warmtewisselaar 13%",0.4,IF(H12="warmtewisselaar 31%",1,IF(H12="warmtewisselaar 37%",1.25,IF(H12="warmtewisselaar 50%",1.8)))),IF(E14="opfok vleeskuikenouderdieren",IF(H12="warmtewisselaar 13%",0.4,IF(H12="warmtewisselaar 31%",1,IF(H12="warmtewisselaar 37%",1.3,IF(H12="warmtewisselaar 50%",1.9)))),IF(D33="vleeskuikenouderdieren",IF(H12="warmtewisselaar 13%",0.6,IF(H12="warmtewisselaar 31%",1.5,IF(H12="warmtewisselaar 37%",1.85,IF(H12="warmtewisselaar 50%",2.9))))))+IF(E14="vleeskuikens",IF(H12="warmtewisselaar 13%",0.35,IF(H12="warmtewisselaar 31%",1,IF(H12="warmtewisselaar 37%",1.3,IF(H12="warmtewisselaar 50%",2,0)))))+IF(E14="vleeseenden",IF(H12="warmtewisselaar 13%",0.8,IF(H12="warmtewisselaar 31%",2.3,IF(H12="warmtewisselaar 37%",3.15,IF(H12="warmtewisselaar 50%",4.8)))))))+IF(E14="kalkoen hennen",IF(H12="warmtewisselaar 13%",1.1,IF(H12="warmtewisselaar 31%",3,IF(H12="warmtewisselaar 37%",3.85,IF(H12="warmtewisselaar 50%",5.6)))))+IF(E14="kalkoen hanen",IF(H12="warmtewisselaar 13%",2.5,IF(H12="warmtewisselaar 31%",6.2,IF(H12="warmtewisselaar 37%",8.2,IF(H12="warmtewisselaar 50%",11.7))))),0)+IF(H19="met stoffilter",IF(D33="opfok leghennen",IF(H12="warmtewisselaar 13%",0.15,IF(H12="warmtewisselaar 31%",0.35,IF(H12="warmtewisselaar 37%",0.4,IF(H12="warmtewisselaar 50%",0.6)))),IF(D33="leghennen",IF(H12="warmtewisselaar 13%",0.35,IF(H12="warmtewisselaar 31%",0.85,IF(H12="warmtewisselaar 37%",1,IF(H12="warmtewisselaar 50%",1.4)))),IF(E14="leghennen grondhuisvesting",IF(H12="warmtewisselaar 13%",0.35,IF(H12="warmtewisselaar 31%",0.85,IF(H12="warmtewisselaar 37%",1,IF(H12="warmtewisselaar 50%",1.4)))),IF(E14="opfok vleeskuikenouderdieren",IF(H12="warmtewisselaar 13%",0.35,IF(H12="warmtewisselaar 31%",0.85,IF(H12="warmtewisselaar 37%",1.1,IF(H12="warmtewisselaar 50%",1.45)))),IF(D33="vleeskuikenouderdieren",IF(H12="warmtewisselaar 13%",0.5,IF(H12="warmtewisselaar 31%",1.2,IF(H12="warmtewisselaar 37%",1.5,IF(H12="warmtewisselaar 50%",2.1))))))+IF(E14="vleeskuikens",IF(H12="warmtewisselaar 13%",0.3,IF(H12="warmtewisselaar 31%",0.75,IF(H12="warmtewisselaar 37%",1,IF(H12="warmtewisselaar 50%",1.45,0)))))+IF(E14="vleeseenden",IF(H12="warmtewisselaar 13%",0.7,IF(H12="warmtewisselaar 31%",1.9,IF(H12="warmtewisselaar 37%",2.3,IF(H12="warmtewisselaar 50%",3.6)))))))+IF(E14="kalkoen hennen",IF(H12="warmtewisselaar 13%",0.9,IF(H12="warmtewisselaar 31%",2.5,IF(H12="warmtewisselaar 37%",3,IF(H12="warmtewisselaar 50%",4.3)))))+IF(E14="kalkoen hanen",IF(H12="warmtewisselaar 13%",2.2,IF(H12="warmtewisselaar 31%",5.3,IF(H12="warmtewisselaar 37%",6.2,IF(H12="warmtewisselaar 50%",9)))))),0) -> 0
D33: =IF(E14="OPFOK LEGHENNEN KOOI/KOLONIE","opfok leghennen",IF(E14="opfok leghennen grondhuisvesting","opfok leghennen",IF(E14="opfok leghennen voliere","opfok leghennen",IF(E14="leghennen verrijkte kooi/kolonie","leghennen",IF(E14="leghennen grondhuisvesting","leghennen",IF(E14="leghennen voliere","leghennen",IF(E14="vleeskuikenouderdieren groepskooi","vleeskuikenouderdieren",IF(E14="vleeskuikenouderdieren grondhuisvesting","vleeskuikenouderdieren",IF(E14="vleeskuikenouderdieren voliere","vleeskuikenouderdieren",0))))))))) -> 0

Sheet wisselend debiet_opfok (hidden)
A1: Lft (dg) | B1: Gew. (kg) | C1: MG | D1: Voer (g/d) | E1: Totaal deb update (m3/d/u) | F1: Hoofd deb update minus WW (m3/d/u) | G1: Deb. w.wisselaar (m3/u/d) | H1: Deb. Alleen Stoffilter (m3/u/d) | I1: Deb. Ww en Stoffilter (m3/u/d) | J1: PM10 conc (mg/m3) | K1: #dieren | L1: Emissie PM10 zonder reductie (g/dpl/j) | M1: Emissie alleen stoffilter | N1: Emissie (g/dpl/jr) bij ..% red. WW en ..%red hoofddebiet | O1: Emissie alleen ww | P1: Emissie ww + stand alone stoffilter | Q1: Emissie Stoffilter en ww achter elkaar | R1: Emissie na overige techniek (g/dpl/jr) | AB1: Berekeningen bij uitbroeden/opfokken en overplaatsen
J2: Achtergrond | R2: 0 | S2: reductie in de stal
J3: =+J4 -> 0 | R3: 0.8 | S3: reductie wwlaar zonder droge stoffilters
R4: =IF('OPFOK OUDERDIEREN'!$H$16=0,'OPFOK OUDERDIEREN'!F14,'OPFOK OUDERDIEREN'!$H$16) -> 0 | S4: max. debiet door wwlaar/droge stoffilters (m3/u/d) | AC4: zonder reductie | AE4: met reductie
R5: ='OPFOK OUDERDIEREN'!$F$20 -> 0 | S5: max. debiet stoffilter stand alone | AB5: verhouding plaatsen | AC5: 1:2 | AD5: 1:1 | AE5: 1:2 | AF5: 1:1
R6: =IF('OPFOK OUDERDIEREN'!$L$20="chemische wasser 35%",35%,IF('OPFOK OUDERDIEREN'!$L$20="chemische wasser 70%",70%,IF('OPFOK OUDERDIEREN'!$L$20="bio wasser 60%",60%,IF('OPFOK OUDERDIEREN'!$L$20="bio wasser 75%",75%,IF('OPFOK OUDERDIEREN'!$L$20="biofilter",80%,IF('OPFOK OUDERDIEREN'!$L$20="waterluchtwassysteem",33%,IF('OPFOK OUDERDIEREN'!$L$20="droogfilterwand",40%,IF('OPFOK OUDERDIEREN'!$L$20="ionisatiefilter",57%,IF('OPFOK OUDERDIEREN'!$L$20="LUCHTCONDITIONERINGSUNIT",IF('OPFOK OUDERDIEREN'!$F$24="Niet alle lucht gaat door luchtconditioneringsunit, dus niet combineren met droog stoffilter","error",80%),0))))))))) -> 0 | S6: reductie overige techniek ALLE lucht
P7: =Q8+P8 -> 0 | R7: ='OPFOK OUDERDIEREN'!$F$14 -> 0 | S7: max. debiet stoffilter met ww | AA7: trad. | AB7: uitbroed/opfok-systeem
L8: =$L$156+1 -> 1 | M8: =MIN(95%,$M$156) -> 0 | N8: =$N$156 -> 0 | O8: =ROUND(IF(O156<22%,O156/95%,IF(O156<34.5%,$O$156/94.3%,IF(O156<45%,$O$156/100%,IF(O156<75%,$O$156/102%,O156)))),2) -> 0 | P8: =MIN(95%,$P$156) -> 0 | Q8: =(IF(Q156<22%,Q156/96%,IF(Q156<35%,$Q$156/102%,IF(Q156<40%,$Q$156/96%,IF(Q156<60%,$Q$156/97%,IF(Q156<75%,$Q$156/98%,Q156)))))) -> 0 | R8: =ROUND($R$156,3) -> 0 | S8: =ROUND($S$156,3) -> 0 | T8: =ROUND($T$156,3) -> 0 | U8: =$U$156 -> 0 | V8: =$V$156 -> 0 | W8: =$W$156 -> 0 | X8: gemiddelde reductie | AB8: Overplaatsen op .... dagen | AC8: 13 | AD8: 19 | AE8: 13 | AF8: 19
A9: 0 | K9: 1 | P9: =O8+P8 -> 0 | R9: lucht ww i.c.m. filter via techniek | S9: lucht ww niet via techniek | T9: lucht ww niet via techniek wel via stoffilter | U9: ww incl stoffilter via techniek | V9: beiden niet via techniek | W9: ww wel via overige techniek | AB9: dagen eieren | AC9: 3 | AD9: 3 | AE9: 3 | AF9: 3
A10: 1 | B10: 62.85714286 | E10: =0.000000000384*B10^3-0.000000342064*B10^2+0.001060852819*B10+0.088327034395 -> 0.1537530761 | F10: =E10-G10 -> 0.1537530761 | G10: =IF($R$4>0<E10,E10,IF($R$4>E10,E10,$R$4)) -> 0 | H10: =IF(E10<$R$5,E10-G10,$R$5) -> 0 | I10: =MIN(R$5,E10-G10) -> 0 | J10: 0.2120663413 | K10: 1 | L10: =J10/1000*E10*24*365 -> 0.2856272662 | M10: =IF(E10>$R$5,L10-(R$5)/E10*L10*97%,L10-(E10)/E10*L10*97%) -> 0.2856272662 | N10: =(((($J10*(1-$R$2))-$J$3)/1000*$F10*24*365*$K10)*(1-R$5))+(((($J10*(1-$R$2))-$J$3)/1000*$G10*24*365*$K10)*(1-R$3)) -> 0.2856272662 | O10: =(((($J10)-$J$3)/1000*$F10*24*365*$K10))+(((($J10)-$J$3)/1000*$G10*24*365*$K10)*(1-R$3)) -> 0.2856272662 | P10: =IF(I10=0,L10,IF(I10>$R$5,L10-(R$5)/E10*L10*97%,L10-(I10)/E10*L10*97%)) -> 0.2856272662 | Q10: =(((($J10)-$J$3)/1000*$F10*24*365*$K10))+(((($J10)-$J$3)/1000*$G10*24*365*$K10)*(1-95%)) -> 0.2856272662 | R10: =IF(E10-G10-H10>=0,L10-((E10-G10*80%-H10*95%)/E10*L10)*$R$6,IF(G10>H10,L10-((E10-G10)/E10*L10)*$R$6,L10-((E10-H10)/E10*L10)*$R$6)) -> 0.2856272662 | S10: =IF(E10-G10-H10>=0,L10-((E10-G10-H10)/E10*L10)*$R$6,IF(G10>H10,L10-((E10-G10)/E10*L10)*$R$6,L10-((E10-H10)/E10*L10)*$R$6)) -> 0.2856272662 | T10: =L10-(E10-H10)/E10*L10*$R$6 -> 0.2856272662 | U10: =IF('OPFOK OUDERDIEREN'!$H$15="ja",L10-((E10-G10*95%-I10)/E10*L10)*$R$6,L10-((E10-G10*80%-I10)/E10*L10)*$R$6) -> 0.2856272662 | V10: =L10-((E10-G10-I10)/E10*L10)*$R$6 -> 0.2856272662 | W10: =L10-(E10-H10)/E10*L10*$R$6 -> 0.2856272662 | X10: =M10/L10 -> 1 | AB10: dagen leegstand | AC10: =AC11-AC8-AC9 -> 3 | AD10: 11 | AE10: =AE11-AE8-AE9 -> 3 | AF10: =AF11-AF8-AF9 -> 11
A11: 2 | B11: 70.71428571 | E11: =0.000000000384*B11^3-0.000000342064*B11^2+0.001060852819*B11+0.088327034395 -> 0.1617697745 | F11: =E11-G11 -> 0.1617697745 | G11: 0 | H11: 0 | I11: 0 | J11: 0.2160044817 | K11: 1 | L11: =J11/1000*E11*24*365 -> 0.3061006476 | M11: =IF(E11>$R$5,L11-(R$5)/E11*L11*97%,L11-(E11)/E11*L11*97%) -> 0.3061006476 | N11: 0.3061006476 | O11: =(((($J11)-$J$3)/1000*$F11*24*365*$K11))+(((($J11*(1-$R$2))-$J$3)/1000*$G11*24*365*$K11)*(1-R$3)) -> 0.3061006476 | P11: 0.3061006476 | Q11: =(((($J11)-$J$3)/1000*$F11*24*365*$K11))+(((($J11)-$J$3)/1000*$G11*24*365*$K11)*(1-95%)) -> 0.3061006476 | R11: =IF(E11-G11-H11>=0,L11-((E11-G11*80%-H11*95%)/E11*L11)*$R$6,IF(G11>H11,L11-((E11-G11)/E11*L11)*$R$6,L11-((E11-H11)/E11*L11)*$R$6)) -> 0.3061006476 | S11: =IF(E11-G11-H11>=0,L11-((E11-G11-H11)/E11*L11)*$R$6,IF(G11>H11,L11-((E11-G11)/E11*L11)*$R$6,L11-((E11-H11)/E11*L11)*$R$6)) -> 0.3061006476 | T11: =L11-(E11-H11)/E11*L11*$R$6 -> 0.3061006476 | U11: =IF('OPFOK OUDERDIEREN'!$H$15="ja",L11-((E11-G11*95%-I11)/E11*L11)*$R$6,L11-((E11-G11*80%-I11)/E11*L11)*$R$6) -> 0.3061006476 | V11: 0.3061006476 | W11: =L11-(E11-H11)/E11*L11*$R$6 -> 0.3061006476 | X11: =M11/L11 -> 1 | AB11: dagen/ronde | AC11: 19 | AD11: 33 | AE11: 19 | AF11: 33
A12: 3 | B12: 78.57142857 | E12: 0.1697542966 | F12: 0.1697542966 | G12: 0 | H12: 0 | I12: 0 | J12: 0.2200157547 | K12: 1 | L12: 0.3271739085 | M12: 0.3271739085 | N12: 0.3271739085 | O12: 0.3271739085 | P12: 0.3271739085 | Q12: 0.3271739085 | R12: 0.3271739085 | S12: 0.3271739085 | T12: 0.3271739085 | U12: =IF('OPFOK OUDERDIEREN'!$H$15="ja",L12-((E12-G12*95%-I12)/E12*L12)*$R$6,L12-((E12-G12*80%-I12)/E12*L12)*$R$6) -> 0.3271739085 | V12: 0.3271739085 | W12: 0.3271739085 | X12: 1 | AB12: # rondes/jr | AC12: =365/AC11 -> 19.21052632 | AD12: 11.06060606 | AE12: =365/AE11 -> 19.21052632 | AF12: =365/AF11 -> 11.06060606
A13: 4 | B13: 86.42857143 | E13: 0.1777077601 | F13: 0.1777077601 | G13: 0 | H13: 0 | I13: 0 | J13: 0.2241015184 | K13: 1 | L13: 0.3488633109 | M13: 0.3488633109 | N13: 0.3488633109 | O13: 0.3488633109 | P13: 0.3488633109 | Q13: 0.3488633109 | R13: 0.3488633109 | S13: 0.3488633109 | T13: 0.3488633109 | U13: =IF('OPFOK OUDERDIEREN'!$H$15="ja",L13-((E13-G13*95%-I13)/E13*L13)*$R$6,L13-((E13-G13*80%-I13)/E13*L13)*$R$6) -> 0.3488633109 | V13: 0.3488633109 | W13: 0.3488633109 | X13: 1 | AB13: emissie/ronde (gam) | AC13: =AVERAGE(L10:L22)/$AA$23 -> 0.06420034404 | AD13: =AVERAGE(L10:L28)/$AA$23 -> 0.08338307693 | AE13: =AVERAGE(N10:N22)/$AA$23 -> 0.06420034404 | AF13: =AVERAGE(N10:N28)/$AA$23 -> 0.08338307693
A14: 5 | B14: 94.28571429 | E14: 0.1856312824 | F14: 0.1856312824 | G14: 0 | H14: 0 | I14: 0 | J14: 0.228263156 | K14: 1 | L14: 0.3711855736 | M14: 0.3711855736 | N14: 0.3711855736 | O14: 0.3711855736 | P14: 0.3711855736 | Q14: 0.3711855736 | R14: 0.3711855736 | S14: 0.3711855736 | T14: 0.3711855736 | U14: =IF('OPFOK OUDERDIEREN'!$H$15="ja",L14-((E14-G14*95%-I14)/E14*L14)*$R$6,L14-((E14-G14*80%-I14)/E14*L14)*$R$6) -> 0.3711855736 | V14: 0.3711855736 | W14: 0.3711855736 | X14: 1 | AB14: emissie/dpl/jr (gram) | AC14: =AC13*AC12 -> 1.233322399 | AD14: =AD13*AD12 -> 0.9222673661 | AE14: =AE13*AE12 -> 1.233322399 | AF14: =AF13*AF12 -> 0.9222673661
A15: 6 | B15: 102.1428571 | E15: 0.1935259812 | F15: 0.1935259812 | G15: 0 | H15: 0 | I15: 0 | J15: 0.2325020765 | K15: 1 | L15: 0.3941578863 | M15: 0.3941578863 | N15: 0.3941578863 | O15: 0.3941578863 | P15: 0.3941578863 | Q15: 0.3941578863 | R15: 0.3941578863 | S15: 0.3941578863 | T15: 0.3941578863 | U15: =IF('OPFOK OUDERDIEREN'!$H$15="ja",L15-((E15-G15*95%-I15)/E15*L15)*$R$6,L15-((E15-G15*80%-I15)/E15*L15)*$R$6) -> 0.3941578863 | V15: 0.3941578863 | W15: 0.3941578863 | X15: 1 | AB15: vervolghuisvesting
A16: 7 | B16: 110 | E16: 0.2013929741 | F16: 0.2013929741 | G16: 0 | H16: 0 | I16: 0 | J16: 0.2368197152 | K16: 1 | L16: 0.4177979224 | M16: 0.4177979224 | N16: 0.4177979224 | O16: 0.4177979224 | P16: 0.4177979224 | Q16: 0.4177979224 | R16: 0.4177979224 | S16: 0.4177979224 | T16: 0.4177979224 | U16: =IF('OPFOK OUDERDIEREN'!$H$15="ja",L16-((E16-G16*95%-I16)/E16*L16)*$R$6,L16-((E16-G16*80%-I16)/E16*L16)*$R$6) -> 0.4177979224 | V16: 0.4177979224 | W16: 0.4177979224 | X16: 1 | AB16: # dagen
A17: 8 | B17: 125.8 | E17: 0.2171334297 | F17: 0.2171334297 | G17: 0 | H17: 0 | I17: 0 | J17: 0.2412175338 | K17: 1 | L17: 0.4588171799 | M17: 0.4588171799 | N17: 0.4588171799 | O17: 0.4588171799 | P17: 0.4588171799 | Q17: 0.4588171799 | R17: 0.4588171799 | S17: 0.4588171799 | T17: 0.4588171799 | U17: =IF('OPFOK OUDERDIEREN'!$H$15="ja",L17-((E17-G17*95%-I17)/E17*L17)*$R$6,L17-((E17-G17*80%-I17)/E17*L17)*$R$6) -> 0.4588171799 | V17: 0.4588171799 | W17: 0.4588171799 | X17: 1 | AB17: Groeiperiode | AC17: 42 | AD17: 42 | AE17: 42 | AF17: 42
A18: 9 | B18: 141.5 | E18: 0.2326767463 | F18: 0.2326767463 | G18: 0 | H18: 0 | I18: 0 | J18: 0.2456970213 | K18: 1 | L18: 0.5007915355 | M18: 0.5007915355 | N18: 0.5007915355 | O18: 0.5007915355 | P18: 0.5007915355 | Q18: 0.5007915355 | R18: 0.5007915355 | S18: 0.5007915355 | T18: 0.5007915355 | U18: =IF('OPFOK OUDERDIEREN'!$H$15="ja",L18-((E18-G18*95%-I18)/E18*L18)*$R$6,L18-((E18-G18*80%-I18)/E18*L18)*$R$6) -> 0.5007915355 | V18: 0.5007915355 | W18: 0.5007915355 | X18: 1 | AB18: Patio | AC18: =+AC8 -> 13 | AD18: =+AD8 -> 19 | AE18: =+AE8 -> 13 | AF18: =+AF8 -> 19
A19: 10 | B19: 157.2 | E19: 0.248131792 | F19: 0.248131792 | G19: 0 | H19: 0 | I19: 0 | J19: 0.2502596944 | K19: 1 | L19: 0.5439731051 | M19: 0.5439731051 | N19: 0.5439731051 | O19: 0.5439731051 | P19: 0.5439731051 | Q19: 0.5439731051 | R19: 0.5439731051 | S19: 0.5439731051 | T19: 0.5439731051 | U19: =IF('OPFOK OUDERDIEREN'!$H$15="ja",L19-((E19-G19*95%-I19)/E19*L19)*$R$6,L19-((E19-G19*80%-I19)/E19*L19)*$R$6) -> 0.5439731051 | V19: 0.5439731051 | W19: 0.5439731051 | X19: 1 | AA19: 42 | AB19: VVH | AC19: =AC17-AC18 -> 29 | AD19: 23 | AE19: =AE17-AE18 -> 29 | AF19: =AF17-AF18 -> 23
A20: 11 | B20: 172.9 | E20: 0.2635074828 | F20: 0.2635074828 | G20: 0 | H20: 0 | I20: 0 | J20: 0.2549070977 | K20: 1 | L20: 0.5884085665 | M20: 0.5884085665 | N20: 0.5884085665 | O20: 0.5884085665 | P20: 0.5884085665 | Q20: 0.5884085665 | R20: 0.5884085665 | S20: 0.5884085665 | T20: 0.5884085665 | U20: =IF('OPFOK OUDERDIEREN'!$H$15="ja",L20-((E20-G20*95%-I20)/E20*L20)*$R$6,L20-((E20-G20*80%-I20)/E20*L20)*$R$6) -> 0.5884085665 | V20: 0.5884085665 | W20: 0.5884085665 | X20: 1 | AA20: 0 | AB20: Leegstand na vvh | AC20: 10 | AD20: 10 | AE20: 10 | AF20: 10
A21: 12 | B21: 188.6 | E21: 0.2788127351 | F21: 0.2788127351 | G21: 0 | H21: 0 | I21: 0 | J21: 0.2596408049 | K21: 1 | L21: 0.6341465876 | M21: 0.6341465876 | N21: 0.6341465876 | O21: 0.6341465876 | P21: 0.6341465876 | Q21: 0.6341465876 | R21: 0.6341465876 | S21: 0.6341465876 | T21: 0.6341465876 | U21: =IF('OPFOK OUDERDIEREN'!$H$15="ja",L21-((E21-G21*95%-I21)/E21*L21)*$R$6,L21-((E21-G21*80%-I21)/E21*L21)*$R$6) -> 0.6341465876 | V21: 0.6341465876 | W21: 0.6341465876 | X21: 1 | AA21: 42 | AB21: # ronden | AC21: =365/(AC19+AC20) -> 9.358974359 | AD21: =365/(AD19+AD20) -> 11.06060606 | AE21: =365/(AE19+AE20) -> 9.358974359 | AF21: =365/(AF19+AF20) -> 11.06060606
A22: 13 | B22: 204.3 | E22: 0.2940564651 | F22: 0.2940564651 | G22: 0 | H22: 0 | I22: 0 | J22: 0.2644624185 | K22: 1 | L22: 0.6812379033 | M22: 0.6812379033 | N22: 0.6812379033 | O22: 0.6812379033 | P22: 0.6812379033 | Q22: 0.6812379033 | R22: 0.6812379033 | S22: 0.6812379033 | T22: 0.6812379033 | U22: =IF('OPFOK OUDERDIEREN'!$H$15="ja",L22-((E22-G22*95%-I22)/E22*L22)*$R$6,L22-((E22-G22*80%-I22)/E22*L22)*$R$6) -> 0.6812379033 | V22: 0.6812379033 | W22: 0.6812379033 | X22: 1 | AA22: 10 | AB22: emissie/ronde (gram) | AC22: =AVERAGE(L23:L51)/$AA$23 -> 0.252906188 | AD22: =AVERAGE(L29:L51)/$AA$23 -> 0.2862871941 | AE22: =AVERAGE(N23:N51)/$AA$23 -> 0.252906188 | AF22: =AVERAGE(N29:N51)/$AA$23 -> 0.2862871941
A23: 14 | B23: 220 | E23: 0.309247589 | F23: 0.309247589 | G23: 0 | H23: 0 | I23: 0 | J23: 0.2693735711 | K23: 1 | L23: 0.7297353959 | M23: 0.7297353959 | N23: 0.7297353959 | O23: 0.7297353959 | P23: 0.7297353959 | Q23: 0.7297353959 | R23: 0.7297353959 | S23: 0.7297353959 | T23: 0.7297353959 | U23: =IF('OPFOK OUDERDIEREN'!$H$15="ja",L23-((E23-G23*95%-I23)/E23*L23)*$R$6,L23-((E23-G23*80%-I23)/E23*L23)*$R$6) -> 0.7297353959 | V23: 0.7297353959 | W23: 0.7297353959 | X23: 1 | AA23: =365/(AA21+AA22) -> 7.019230769 | AB23: emissie/dpl/jr (gram) | AC23: =AC22*AC21 -> 2.366942529 | AD23: =AD22*AD21 -> 3.166509874 | AE23: =AE22*AE21 -> 2.366942529 | AF23: =AF22*AF21 -> 3.166509874
A24: 15 | B24: 238.4 | E24: 0.3269962434 | F24: 0.3269962434 | G24: 0 | H24: 0 | I24: 0 | J24: 0.2743759253 | K24: 1 | L24: 0.7859462964 | M24: 0.7859462964 | N24: 0.7859462964 | O24: 0.7859462964 | P24: 0.7859462964 | Q24: 0.7859462964 | R24: 0.7859462964 | S24: 0.7859462964 | T24: 0.7859462964 | U24: =IF('OPFOK OUDERDIEREN'!$H$15="ja",L24-((E24-G24*95%-I24)/E24*L24)*$R$6,L24-((E24-G24*80%-I24)/E24*L24)*$R$6) -> 0.7859462964 | V24: 0.7859462964 | W24: 0.7859462964 | X24: 1 | AA24: =AA22/(AA21+AA22) -> 0.1923076923 | AB24: samen (gr/dpl/jr) | AC24: =(AC14+(AC23*2))/3 -> 1.989069152 | AD24: =(AD14+AD23)/2 -> 2.04438862 | AE24: =(AE14+(AE23*2))/3 -> 1.989069152 | AF24: =(AF14+AF23)/2 -> 2.04438862
A25: 16 | B25: 257 | E25: 0.3448914675 | F25: 0.3448914675 | G25: 0 | H25: 0 | I25: 0 | J25: 0.2794711749 | K25: 1 | L25: 0.8443520788 | M25: 0.8443520788 | N25: 0.8443520788 | O25: 0.8443520788 | P25: 0.8443520788 | Q25: 0.8443520788 | R25: 0.8443520788 | S25: 0.8443520788 | T25: 0.8443520788 | U25: =IF('OPFOK OUDERDIEREN'!$H$15="ja",L25-((E25-G25*95%-I25)/E25*L25)*$R$6,L25-((E25-G25*80%-I25)/E25*L25)*$R$6) -> 0.8443520788 | V25: 0.8443520788 | W25: 0.8443520788 | X25: 1 | AB25: verschil t.o.v. trad. | AC25: =(AC24/$L$155) -> 0.1108534041 | AD25: =(AD24/$L$155) -> 0.1139364298
A26: 17 | B26: 275.6 | E26: 0.3627548632 | F26: 0.3627548632 | G26: 0 | H26: 0 | I26: 0 | J26: 0.2846610449 | K26: 1 | L26: 0.9045766826 | M26: 0.9045766826 | N26: 0.9045766826 | O26: 0.9045766826 | P26: 0.9045766826 | Q26: 0.9045766826 | R26: 0.9045766826 | S26: 0.9045766826 | T26: 0.9045766826 | U26: =IF('OPFOK OUDERDIEREN'!$H$15="ja",L26-((E26-G26*95%-I26)/E26*L26)*$R$6,L26-((E26-G26*80%-I26)/E26*L26)*$R$6) -> 0.9045766826 | V26: 0.9045766826 | W26: 0.9045766826 | X26: 1 | AB26: reductie | AE26: =(AC24-AE24)/AC24 -> 0 | AF26: =(AD24-AF24)/AD24 -> 0
A27: 18 | B27: 294.2 | E27: 0.3806012565 | F27: 0.3806012565 | G27: 0 | H27: 0 | I27: 0 | J27: 0.2899472924 | K27: 1 | L27: 0.9667037014 | M27: 0.9667037014 | N27: 0.9667037014 | O27: 0.9667037014 | P27: 0.9667037014 | Q27: 0.9667037014 | R27: 0.9667037014 | S27: 0.9667037014 | T27: 0.9667037014 | U27: =IF('OPFOK OUDERDIEREN'!$H$15="ja",L27-((E27-G27*95%-I27)/E27*L27)*$R$6,L27-((E27-G27*80%-I27)/E27*L27)*$R$6) -> 0.9667037014 | V27: 0.9667037014 | W27: 0.9667037014 | X27: 1
A28: 19 | B28: 312.8 | E28: 0.3984454733 | F28: 0.3984454733 | G28: 0 | H28: 0 | I28: 0 | J28: 0.2953317073 | K28: 1 | L28: 1.030820577 | M28: 1.030820577 | N28: 1.030820577 | O28: 1.030820577 | P28: 1.030820577 | Q28: 1.030820577 | R28: 1.030820577 | S28: 1.030820577 | T28: 1.030820577 | U28: =IF('OPFOK OUDERDIEREN'!$H$15="ja",L28-((E28-G28*95%-I28)/E28*L28)*$R$6,L28-((E28-G28*80%-I28)/E28*L28)*$R$6) -> 1.030820577 | V28: 1.030820577 | W28: 1.030820577 | X28: 1
A29: 20 | B29: 331.4 | E29: 0.4163023395 | F29: 0.4163023395 | G29: 0 | H29: 0 | I29: 0 | J29: 0.3008161125 | K29: 1 | L29: 1.097018754 | M29: 1.097018754 | N29: 1.097018754 | O29: 1.097018754 | P29: 1.097018754 | Q29: 1.097018754 | R29: 1.097018754 | S29: 1.097018754 | T29: 1.097018754 | U29: =IF('OPFOK OUDERDIEREN'!$H$15="ja",L29-((E29-G29*95%-I29)/E29*L29)*$R$6,L29-((E29-G29*80%-I29)/E29*L29)*$R$6) -> 1.097018754 | V29: 1.097018754 | W29: 1.097018754 | X29: 1
A30: 21 | B30: 350 | E30: 0.434186681 | F30: 0.434186681 | G30: 0 | H30: 0 | I30: 0 | J30: 0.3064023649 | K30: 1 | L30: 1.165393835 | M30: 1.165393835 | N30: 1.165393835 | O30: 1.165393835 | P30: 1.165393835 | Q30: 1.165393835 | R30: 1.165393835 | S30: 1.165393835 | T30: 1.165393835 | U30: =IF('OPFOK OUDERDIEREN'!$H$15="ja",L30-((E30-G30*95%-I30)/E30*L30)*$R$6,L30-((E30-G30*80%-I30)/E30*L30)*$R$6) -> 1.165393835 | V30: 1.165393835 | W30: 1.165393835 | X30: 1
A31: 22 | B31: 367.4 | E31: 0.450955201 | F31: 0.450955201 | G31: 0 | H31: 0 | I31: 0 | J31: 0.3120923558 | K31: 1 | L31: 1.232879518 | M31: 1.232879518 | N31: 1.232879518 | O31: 1.232879518 | P31: 1.232879518 | Q31: 1.232879518 | R31: 1.232879518 | S31: 1.232879518 | T31: 1.232879518 | U31: =IF('OPFOK OUDERDIEREN'!$H$15="ja",L31-((E31-G31*95%-I31)/E31*L31)*$R$6,L31-((E31-G31*80%-I31)/E31*L31)*$R$6) -> 1.232879518 | V31: 1.232879518 | W31: 1.232879518 | X31: 1
A32: 23 | B32: 384.5 | E32: 0.4674824333 | F32: 0.4674824333 | G32: 0 | H32: 0 | I32: 0 | J32: 0.3178880117 | K32: 1 | L32: 1.301797856 | M32: 1.301797856 | N32: 1.301797856 | O32: 1.301797856 | P32: 1.301797856 | Q32: 1.301797856 | R32: 1.301797856 | S32: 1.301797856 | T32: 1.301797856 | U32: =IF('OPFOK OUDERDIEREN'!$H$15="ja",L32-((E32-G32*95%-I32)/E32*L32)*$R$6,L32-((E32-G32*80%-I32)/E32*L32)*$R$6) -> 1.301797856 | V32: 1.301797856 | W32: 1.301797856 | X32: 1
A33: 24 | B33: 401.6 | E33: 0.4840686621 | F33: 0.4840686621 | G33: 0 | H33: 0 | I33: 0 | J33: 0.3237912947 | K33: 1 | L33: 1.373018037 | M33: 1.373018037 | N33: 1.373018037 | O33: 1.373018037 | P33: 1.373018037 | Q33: 1.373018037 | R33: 1.373018037 | S33: 1.373018037 | T33: 1.373018037 | U33: =IF('OPFOK OUDERDIEREN'!$H$15="ja",L33-((E33-G33*95%-I33)/E33*L33)*$R$6,L33-((E33-G33*80%-I33)/E33*L33)*$R$6) -> 1.373018037 | V33: 1.373018037 | W33: 1.373018037 | X33: 1
A34: 25 | B34: 418.7 | E34: 0.5007254081 | F34: 0.5007254081 | G34: 0 | H34: 0 | I34: 0 | J34: 0.3298042037 | K34: 1 | L34: 1.446638178 | M34: 1.446638178 | N34: 1.446638178 | O34: 1.446638178 | P34: 1.446638178 | Q34: 1.446638178 | R34: 1.446638178 | S34: 1.446638178 | T34: 1.446638178 | U34: =IF('OPFOK OUDERDIEREN'!$H$15="ja",L34-((E34-G34*95%-I34)/E34*L34)*$R$6,L34-((E34-G34*80%-I34)/E34*L34)*$R$6) -> 1.446638178 | V34: =L34-((E34-G34-I34)/E34*L34)*$R$6 -> 1.446638178 | W34: 1.446638178 | X34: 1
A35: 26 | B35: 435.8 | E35: 0.5174641917 | F35: 0.5174641917 | G35: 0 | H35: =IF(E35<$R$5,E35-G35,$R$5) -> 0 | I35: 0 | J35: 0.3359287743 | K35: 1 | L35: 1.522760538 | M35: 1.522760538 | N35: 1.522760538 | O35: 1.522760538 | P35: 1.522760538 | Q35: 1.522760538 | R35: 1.522760538 | S35: 1.522760538 | T35: 1.522760538 | U35: =IF('OPFOK OUDERDIEREN'!$H$15="ja",L35-((E35-G35*95%-I35)/E35*L35)*$R$6,L35-((E35-G35*80%-I35)/E35*L35)*$R$6) -> 1.522760538 | V35: =L35-((E35-G35-I35)/E35*L35)*$R$6 -> 1.522760538 | W35: 1.522760538 | X35: 1
A36: 27 | B36: 452.9 | E36: 0.5342965334 | F36: 0.5342965334 | G36: =IF($R$4>0<E36,E36,IF($R$4>E36,E36,$R$4)) -> 0 | H36: =IF(E36<$R$5,E36-G36,$R$5) -> 0 | I36: 0 | J36: 0.3421670801 | K36: 1 | L36: 1.601491679 | M36: 1.601491679 | N36: 1.601491679 | O36: 1.601491679 | P36: 1.601491679 | Q36: 1.601491679 | R36: 1.601491679 | S36: 1.601491679 | T36: 1.601491679 | U36: =IF('OPFOK OUDERDIEREN'!$H$15="ja",L36-((E36-G36*95%-I36)/E36*L36)*$R$6,L36-((E36-G36*80%-I36)/E36*L36)*$R$6) -> 1.601491679 | V36: 1.601491679 | W36: 1.601491679 | X36: 1
A37: 28 | B37: 470 | E37: 0.5512339537 | F37: 0.5512339537 | G37: =IF($R$4>0<E37,E37,IF($R$4>E37,E37,$R$4)) -> 0 | H37: 0 | I37: 0 | J37: 0.3485212334 | K37: 1 | L37: 1.68294262 | M37: 1.68294262 | N37: 1.68294262 | O37: 1.68294262 | P37: 1.68294262 | Q37: 1.68294262 | R37: 1.68294262 | S37: 1.68294262 | T37: 1.68294262 | U37: =IF('OPFOK OUDERDIEREN'!$H$15="ja",L37-((E37-G37*95%-I37)/E37*L37)*$R$6,L37-((E37-G37*80%-I37)/E37*L37)*$R$6) -> 1.68294262 | V37: 1.68294262 | W37: 1.68294262 | X37: 1
A38: 29 | B38: 487.4 | E38: 0.5685882763 | F38: 0.5685882763 | G38: 0 | H38: 0 | I38: 0 | J38: 0.3549933852 | K38: 1 | L38: 1.768162875 | M38: 1.768162875 | N38: =(((($J38*(1-$R$2))-$J$3)/1000*$F38*24*365*$K38)*(1-R$4))+(((($J38*(1-$R$2))-$J$3)/1000*$G38*24*365*$K38)*(1-R$3)) -> 1.768162875 | O38: 1.768162875 | P38: 1.768162875 | Q38: 1.768162875 | R38: 1.768162875 | S38: 1.768162875 | T38: 1.768162875 | U38: =IF('OPFOK OUDERDIEREN'!$H$15="ja",L38-((E38-G38*95%-I38)/E38*L38)*$R$6,L38-((E38-G38*80%-I38)/E38*L38)*$R$6) -> 1.768162875 | V38: 1.768162875 | W38: 1.768162875 | X38: 1
A39: 30 | B39: 504.5 | E39: 0.5857727658 | F39: 0.5857727658 | G39: 0 | H39: 0 | I39: 0 | J39: 0.3615857271 | K39: 1 | L39: 1.855429946 | M39: 1.855429946 | N39: =(((($J39*(1-$R$2))-$J$3)/1000*$F39*24*365*$K39)*(1-R$4))+(((($J39*(1-$R$2))-$J$3)/1000*$G39*24*365*$K39)*(1-R$3)) -> 1.855429946 | O39: 1.855429946 | P39: 1.855429946 | Q39: 1.855429946 | R39: 1.855429946 | S39: 1.855429946 | T39: 1.855429946 | U39: =IF('OPFOK OUDERDIEREN'!$H$15="ja",L39-((E39-G39*95%-I39)/E39*L39)*$R$6,L39-((E39-G39*80%-I39)/E39*L39)*$R$6) -> 1.855429946 | V39: 1.855429946 | W39: 1.855429946 | X39: 1
A40: 31 | B40: 521.6 | E40: 0.6030970974 | F40: 0.6030970974 | G40: 0 | H40: 0 | I40: 0 | J40: 0.3683004908 | K40: 1 | L40: 1.945779583 | M40: 1.945779583 | N40: =(((($J40*(1-$R$2))-$J$3)/1000*$F40*24*365*$K40)*(1-R$4))+(((($J40*(1-$R$2))-$J$3)/1000*$G40*24*365*$K40)*(1-R$3)) -> 1.945779583 | O40: 1.945779583 | P40: 1.945779583 | Q40: 1.945779583 | R40: 1.945779583 | S40: 1.945779583 | T40: 1.945779583 | U40: =IF('OPFOK OUDERDIEREN'!$H$15="ja",L40-((E40-G40*95%-I40)/E40*L40)*$R$6,L40-((E40-G40*80%-I40)/E40*L40)*$R$6) -> 1.945779583 | V40: 1.945779583 | W40: 1.945779583 | X40: 1
A41: 32 | B41: 538.7 | E41: 0.6205727917 | F41: 0.6205727917 | G41: 0 | H41: 0 | I41: 0 | J41: 0.3751399499 | K41: 1 | L41: 2.039342419 | M41: 2.039342419 | N41: =(((($J41*(1-$R$2))-$J$3)/1000*$F41*24*365*$K41)*(1-R$5))+(((($J41*(1-$R$2))-$J$3)/1000*$G41*24*365*$K41)*(1-R$3)) -> 2.039342419 | O41: 2.039342419 | P41: 2.039342419 | Q41: 2.039342419 | R41: 2.039342419 | S41: 2.039342419 | T41: 2.039342419 | U41: =IF('OPFOK OUDERDIEREN'!$H$15="ja",L41-((E41-G41*95%-I41)/E41*L41)*$R$6,L41-((E41-G41*80%-I41)/E41*L41)*$R$6) -> 2.039342419 | V41: 2.039342419 | W41: 2.039342419 | X41: 1
A42: 33 | B42: 555.8 | E42: 0.6382113691 | F42: 0.6382113691 | G42: 0 | H42: 0 | I42: =MIN(R$5,E42-G42) -> 0 | J42: 0.38210642 | K42: 1 | L42: 2.136254434 | M42: 2.136254434 | N42: 2.136254434 | O42: 2.136254434 | P42: 2.136254434 | Q42: 2.136254434 | R42: 2.136254434 | S42: 2.136254434 | T42: 2.136254434 | U42: =IF('OPFOK OUDERDIEREN'!$H$15="ja",L42-((E42-G42*95%-I42)/E42*L42)*$R$6,L42-((E42-G42*80%-I42)/E42*L42)*$R$6) -> 2.136254434 | V42: 2.136254434 | W42: 2.136254434 | X42: 1
A43: 34 | B43: 572.9 | E43: 0.6560243501 | F43: 0.6560243501 | G43: 0 | H43: 0 | I43: 0 | J43: 0.3892022597 | K43: 1 | L43: 2.236657157 | M43: 2.236657157 | N43: 2.236657157 | O43: 2.236657157 | P43: 2.236657157 | Q43: 2.236657157 | R43: 2.236657157 | S43: 2.236657157 | T43: 2.236657157 | U43: =IF('OPFOK OUDERDIEREN'!$H$15="ja",L43-((E43-G43*95%-I43)/E43*L43)*$R$6,L43-((E43-G43*80%-I43)/E43*L43)*$R$6) -> 2.236657157 | V43: 2.236657157 | W43: 2.236657157 | X43: 1
A44: 35 | B44: 590 | E44: 0.6740232552 | F44: 0.6740232552 | G44: 0 | H44: 0 | I44: 0 | J44: 0.3964298713 | K44: 1 | L44: 2.340697863 | M44: 2.340697863 | N44: 2.340697863 | O44: 2.340697863 | P44: 2.340697863 | Q44: 2.340697863 | R44: 2.340697863 | S44: 2.340697863 | T44: 2.340697863 | U44: =IF('OPFOK OUDERDIEREN'!$H$15="ja",L44-((E44-G44*95%-I44)/E44*L44)*$R$6,L44-((E44-G44*80%-I44)/E44*L44)*$R$6) -> 2.340697863 | V44: 2.340697863 | W44: 2.340697863 | X44: 1
A45: 36 | B45: 605.8 | E45: 0.6908290626 | F45: 0.6908290626 | G45: 0 | H45: 0 | I45: 0 | J45: 0.4037917021 | K45: 1 | L45: 2.443611137 | M45: 2.443611137 | N45: 2.443611137 | O45: 2.443611137 | P45: 2.443611137 | Q45: 2.443611137 | R45: 2.443611137 | S45: 2.443611137 | T45: 2.443611137 | U45: =IF('OPFOK OUDERDIEREN'!$H$15="ja",L45-((E45-G45*95%-I45)/E45*L45)*$R$6,L45-((E45-G45*80%-I45)/E45*L45)*$R$6) -> 2.443611137 | V45: 2.443611137 | W45: 2.443611137 | X45: 1
A46: 37 | B46: 621.5 | E46: 0.7077044547 | F46: 0.7077044547 | G46: 0 | H46: 0 | I46: 0 | J46: 0.4112902445 | K46: 1 | L46: 2.549790178 | M46: 2.549790178 | N46: 2.549790178 | O46: 2.549790178 | P46: 2.549790178 | Q46: 2.549790178 | R46: 2.549790178 | S46: 2.549790178 | T46: 2.549790178 | U46: =IF('OPFOK OUDERDIEREN'!$H$15="ja",L46-((E46-G46*95%-I46)/E46*L46)*$R$6,L46-((E46-G46*80%-I46)/E46*L46)*$R$6) -> 2.549790178 | V46: 2.549790178 | W46: 2.549790178 | X46: 1
A47: 38 | B47: 637.2 | E47: 0.7247641739 | F47: 0.7247641739 | G47: 0 | H47: 0 | I47: 0 | J47: 0.4189280372 | K47: 1 | L47: 2.659746527 | M47: 2.659746527 | N47: 2.659746527 | O47: 2.659746527 | P47: 2.659746527 | Q47: 2.659746527 | R47: 2.659746527 | S47: 2.659746527 | T47: 2.659746527 | U47: =IF('OPFOK OUDERDIEREN'!$H$15="ja",L47-((E47-G47*95%-I47)/E47*L47)*$R$6,L47-((E47-G47*80%-I47)/E47*L47)*$R$6) -> 2.659746527 | V47: 2.659746527 | W47: 2.659746527 | X47: 1
A48: 39 | B48: 652.9 | E48: 0.7420171367 | F48: 0.7420171367 | G48: 0 | H48: 0 | I48: 0 | J48: 0.4267076662 | K48: 1 | L48: 2.77362975 | M48: 2.77362975 | N48: 2.77362975 | O48: 2.77362975 | P48: 2.77362975 | Q48: 2.77362975 | R48: 2.77362975 | S48: =IF(E48-G48-H48>=0,L48-((E48-G48-H48)/E48*L48)*$R$6,IF(G48>H48,L48-((E48-G48)/E48*L48)*$R$6,L48-((E48-H48)/E48*L48)*$R$6)) -> 2.77362975 | T48: 2.77362975 | U48: =IF('OPFOK OUDERDIEREN'!$H$15="ja",L48-((E48-G48*95%-I48)/E48*L48)*$R$6,L48-((E48-G48*80%-I48)/E48*L48)*$R$6) -> 2.77362975 | V48: 2.77362975 | W48: 2.77362975 | X48: 1
A49: 40 | B49: 668.6 | E49: 0.759472259 | F49: 0.759472259 | G49: 0 | H49: 0 | I49: 0 | J49: 0.4346317654 | K49: 1 | L49: 2.891595134 | M49: 2.891595134 | N49: 2.891595134 | O49: 2.891595134 | P49: 2.891595134 | Q49: 2.891595134 | R49: 2.891595134 | S49: 2.891595134 | T49: 2.891595134 | U49: =IF('OPFOK OUDERDIEREN'!$H$15="ja",L49-((E49-G49*95%-I49)/E49*L49)*$R$6,L49-((E49-G49*80%-I49)/E49*L49)*$R$6) -> 2.891595134 | V49: 2.891595134 | W49: 2.891595134 | X49: 1
A50: 41 | B50: 684.3 | E50: 0.7771384573 | F50: 0.7771384573 | G50: 0 | H50: 0 | I50: 0 | J50: 0.4427030176 | K50: 1 | L50: 3.013803892 | M50: 3.013803892 | N50: 3.013803892 | O50: 3.013803892 | P50: 3.013803892 | Q50: 3.013803892 | R50: 3.013803892 | S50: 3.013803892 | T50: 3.013803892 | U50: =IF('OPFOK OUDERDIEREN'!$H$15="ja",L50-((E50-G50*95%-I50)/E50*L50)*$R$6,L50-((E50-G50*80%-I50)/E50*L50)*$R$6) -> 3.013803892 | V50: 3.013803892 | W50: 3.013803892 | X50: 1
A51: 42 | B51: 700 | E51: 0.7950246477 | F51: 0.7950246477 | G51: 0 | H51: 0 | I51: =MIN(R$5,E51-G51) -> 0 | J51: 0.4509241557 | K51: 1 | L51: 3.140423366 | M51: 3.140423366 | N51: 3.140423366 | O51: 3.140423366 | P51: 3.140423366 | Q51: 3.140423366 | R51: =IF(E51-G51-H51>=0,L51-((E51-G51*80%-H51*95%)/E51*L51)*$R$6,IF(G51>H51,L51-((E51-G51)/E51*L51)*$R$6,L51-((E51-H51)/E51*L51)*$R$6)) -> 3.140423366 | S51: 3.140423366 | T51: 3.140423366 | U51: =IF('OPFOK OUDERDIEREN'!$H$15="ja",L51-((E51-G51*95%-I51)/E51*L51)*$R$6,L51-((E51-G51*80%-I51)/E51*L51)*$R$6) -> 3.140423366 | V51: 3.140423366 | W51: 3.140423366 | X51: 1
A52: 43 | B52: 714.2 | E52: 0.8113988696 | F52: =E52-G52 -> 0.8113988696 | G52: =IF($R$4>0<E52,E52,IF($R$4>E52,E52,$R$4)) -> 0 | H52: =IF(E52<$R$5,E52-G52,$R$5) -> 0 | I52: =MIN(R$5,E52-G52) -> 0 | J52: 0.4592979629 | K52: 1 | L52: 3.264622908 | M52: 3.264622908 | N52: =(((($J52*(1-$R$2))-$J$3)/1000*$F52*24*365*$K52)*(1-R$5))+(((($J52*(1-$R$2))-$J$3)/1000*$G52*24*365*$K52)*(1-R$3)) -> 3.264622908 | O52: =(((($J52)-$J$3)/1000*$F52*24*365*$K52))+(((($J52*(1-$R$2))-$J$3)/1000*$G52*24*365*$K52)*(1-R$3)) -> 3.264622908 | P52: 3.264622908 | Q52: 3.264622908 | R52: =IF(E52-G52-H52>=0,L52-((E52-G52*80%-H52*95%)/E52*L52)*$R$6,IF(G52>H52,L52-((E52-G52)/E52*L52)*$R$6,L52-((E52-H52)/E52*L52)*$R$6)) -> 3.264622908 | S52: =IF(E52-G52-H52>=0,L52-((E52-G52-H52)/E52*L52)*$R$6,IF(G52>H52,L52-((E52-G52)/E52*L52)*$R$6,L52-((E52-H52)/E52*L52)*$R$6)) -> 3.264622908 | T52: =L52-(E52-H52)/E52*L52*$R$6 -> 3.264622908 | U52: =IF('OPFOK OUDERDIEREN'!$H$15="ja",L52-((E52-G52*95%-I52)/E52*L52)*$R$6,L52-((E52-G52*80%-I52)/E52*L52)*$R$6) -> 3.264622908 | V52: =L52-((E52-G52-I52)/E52*L52)*$R$6 -> 3.264622908 | W52: =L52-(E52-H52)/E52*L52*$R$6 -> 3.264622908
A53: 44 | B53: 728.5 | E53: 0.8280843256 | F53: 0.8280843256 | G53: 0 | H53: 0 | I53: 0 | J53: 0.4678272745 | K53: 1 | L53: 3.393627794 | M53: 3.393627794 | N53: 3.393627794 | O53: 3.393627794 | P53: 3.393627794 | Q53: 3.393627794 | R53: 3.393627794 | S53: 3.393627794 | T53: 3.393627794 | U53: =IF('OPFOK OUDERDIEREN'!$H$15="ja",L53-((E53-G53*95%-I53)/E53*L53)*$R$6,L53-((E53-G53*80%-I53)/E53*L53)*$R$6) -> 3.393627794 | V53: 3.393627794 | W53: 3.393627794
A54: 45 | B54: 742.8 | E54: 0.8449731134 | F54: 0.8449731134 | G54: 0 | H54: 0 | I54: 0 | J54: 0.4765149781 | K54: 1 | L54: 3.527146939 | M54: 3.527146939 | N54: 3.527146939 | O54: 3.527146939 | P54: 3.527146939 | Q54: 3.527146939 | R54: 3.527146939 | S54: 3.527146939 | T54: 3.527146939 | U54: =IF('OPFOK OUDERDIEREN'!$H$15="ja",L54-((E54-G54*95%-I54)/E54*L54)*$R$6,L54-((E54-G54*80%-I54)/E54*L54)*$R$6) -> 3.527146939 | V54: 3.527146939 | W54: 3.527146939
A55: 46 | B55: 757.1 | E55: 0.8620719703 | F55: 0.8620719703 | G55: 0 | H55: 0 | I55: 0 | J55: 0.4853640152 | K55: 1 | L55: 3.665347925 | M55: 3.665347925 | N55: 3.665347925 | O55: 3.665347925 | P55: 3.665347925 | Q55: 3.665347925 | R55: 3.665347925 | S55: 3.665347925 | T55: 3.665347925 | U55: =IF('OPFOK OUDERDIEREN'!$H$15="ja",L55-((E55-G55*95%-I55)/E55*L55)*$R$6,L55-((E55-G55*80%-I55)/E55*L55)*$R$6) -> 3.665347925 | V55: 3.665347925 | W55: 3.665347925
A56: 47 | B56: 771.4 | E56: 0.8793876337 | F56: 0.8793876337 | G56: 0 | H56: 0 | I56: 0 | J56: 0.4943773817 | K56: 1 | L56: 3.808404358 | M56: 3.808404358 | N56: 3.808404358 | O56: 3.808404358 | P56: 3.808404358 | Q56: 3.808404358 | R56: 3.808404358 | S56: 3.808404358 | T56: 3.808404358 | U56: =IF('OPFOK OUDERDIEREN'!$H$15="ja",L56-((E56-G56*95%-I56)/E56*L56)*$R$6,L56-((E56-G56*80%-I56)/E56*L56)*$R$6) -> 3.808404358 | V56: 3.808404358 | W56: 3.808404358
A57: 48 | B57: 785.7 | E57: 0.896926841 | F57: 0.896926841 | G57: 0 | H57: 0 | I57: 0 | J57: 0.5035581294 | K57: 1 | L57: 3.956496068 | M57: 3.956496068 | N57: 3.956496068 | O57: 3.956496068 | P57: 3.956496068 | Q57: 3.956496068 | R57: 3.956496068 | S57: 3.956496068 | T57: 3.956496068 | U57: =IF('OPFOK OUDERDIEREN'!$H$15="ja",L57-((E57-G57*95%-I57)/E57*L57)*$R$6,L57-((E57-G57*80%-I57)/E57*L57)*$R$6) -> 3.956496068 | V57: 3.956496068 | W57: 3.956496068
A58: 49 | B58: 800 | E58: 0.9146963296 | F58: 0.9146963296 | G58: 0 | H58: 0 | I58: 0 | J58: 0.5129093666 | K58: 1 | L58: 4.109809319 | M58: 4.109809319 | N58: 4.109809319 | O58: 4.109809319 | P58: =IF(I58=0,L58,IF(I58>$R$5,L58-(R$5)/E58*L58*97%,L58-(I58)/E58*L58*97%)) -> 4.109809319 | Q58: 4.109809319 | R58: 4.109809319 | S58: 4.109809319 | T58: 4.109809319 | U58: =IF('OPFOK OUDERDIEREN'!$H$15="ja",L58-((E58-G58*95%-I58)/E58*L58)*$R$6,L58-((E58-G58*80%-I58)/E58*L58)*$R$6) -> 4.109809319 | V58: 4.109809319 | W58: 4.109809319
A59: 50 | B59: 814.2 | E59: =0.000000000384*B59^3-0.000000342064*B59^2+0.001060852819*B59+0.088327034395 -> 0.9325760787 | F59: =E59-G59 -> 0.9325760787 | G59: =IF($R$4>0<E59,E59,IF($R$4>E59,E59,$R$4)) -> 0 | H59: =IF(E59<$R$5,E59-G59,$R$5) -> 0 | I59: =MIN(R$5,E59-G59) -> 0 | J59: 0.5224342592 | K59: 1 | L59: =J59/1000*E59*24*365 -> 4.267956909 | M59: =IF(E59>$R$5,L59-(R$5)/E59*L59*97%,L59-(E59)/E59*L59*97%) -> 4.267956909 | N59: =(((($J59*(1-$R$2))-$J$3)/1000*$F59*24*365*$K59)*(1-R$5))+(((($J59*(1-$R$2))-$J$3)/1000*$G59*24*365*$K59)*(1-R$3)) -> 4.267956909 | O59: =(((($J59)-$J$3)/1000*$F59*24*365*$K59))+(((($J59*(1-$R$2))-$J$3)/1000*$G59*24*365*$K59)*(1-R$3)) -> 4.267956909 | P59: =IF(I59=0,L59,IF(I59>$R$5,L59-(R$5)/E59*L59*97%,L59-(I59)/E59*L59*97%)) -> 4.267956909 | Q59: 4.267956909 | R59: =IF(E59-G59-H59>=0,L59-((E59-G59*80%-H59*95%)/E59*L59)*$R$6,IF(G59>H59,L59-((E59-G59)/E59*L59)*$R$6,L59-((E59-H59)/E59*L59)*$R$6)) -> 4.267956909 | S59: =IF(E59-G59-H59>=0,L59-((E59-G59-H59)/E59*L59)*$R$6,IF(G59>H59,L59-((E59-G59)/E59*L59)*$R$6,L59-((E59-H59)/E59*L59)*$R$6)) -> 4.267956909 | T59: =L59-(E59-H59)/E59*L59*$R$6 -> 4.267956909 | U59: =IF('OPFOK OUDERDIEREN'!$H$15="ja",L59-((E59-G59*95%-I59)/E59*L59)*$R$6,L59-((E59-G59*80%-I59)/E59*L59)*$R$6) -> 4.267956909 | V59: =L59-((E59-G59-I59)/E59*L59)*$R$6 -> 4.267956909 | W59: =L59-(E59-H59)/E59*L59*$R$6 -> 4.267956909
A60: 51 | B60: 828.5 | E60: 0.9508246139 | F60: 0.9508246139 | G60: 0 | H60: 0 | I60: 0 | J60: 0.5321360321 | K60: 1 | L60: 4.432280007 | M60: 4.432280007 | N60: 4.432280007 | O60: 4.432280007 | P60: 4.432280007 | Q60: 4.432280007 | R60: 4.432280007 | S60: 4.432280007 | T60: 4.432280007 | U60: =IF('OPFOK OUDERDIEREN'!$H$15="ja",L60-((E60-G60*95%-I60)/E60*L60)*$R$6,L60-((E60-G60*80%-I60)/E60*L60)*$R$6) -> 4.432280007 | V60: 4.432280007 | W60: 4.432280007
A61: 52 | B61: 842.8 | E61: 0.9693235954 | F61: 0.9693235954 | G61: 0 | H61: 0 | I61: 0 | J61: 0.5420179702 | K61: 1 | L61: 4.602423475 | M61: 4.602423475 | N61: 4.602423475 | O61: 4.602423475 | P61: 4.602423475 | Q61: 4.602423475 | R61: 4.602423475 | S61: 4.602423475 | T61: 4.602423475 | U61: =IF('OPFOK OUDERDIEREN'!$H$15="ja",L61-((E61-G61*95%-I61)/E61*L61)*$R$6,L61-((E61-G61*80%-I61)/E61*L61)*$R$6) -> 4.602423475 | V61: 4.602423475 | W61: 4.602423475
A62: 53 | B62: 857.1 | E62: 0.9880797605 | F62: 0.9880797605 | G62: 0 | H62: 0 | I62: 0 | J62: 0.552083419 | K62: 1 | L62: 4.778601483 | M62: 4.778601483 | N62: 4.778601483 | O62: 4.778601483 | P62: 4.778601483 | Q62: 4.778601483 | R62: 4.778601483 | S62: 4.778601483 | T62: 4.778601483 | U62: =IF('OPFOK OUDERDIEREN'!$H$15="ja",L62-((E62-G62*95%-I62)/E62*L62)*$R$6,L62-((E62-G62*80%-I62)/E62*L62)*$R$6) -> 4.778601483 | V62: 4.778601483 | W62: 4.778601483
A63: 54 | B63: 871.4 | E63: 1.007099847 | F63: 1.007099847 | G63: 0 | H63: 0 | I63: 0 | J63: 0.5623357864 | K63: 1 | L63: 4.96103577 | M63: 4.96103577 | N63: 4.96103577 | O63: 4.96103577 | P63: 4.96103577 | Q63: 4.96103577 | R63: 4.96103577 | S63: 4.96103577 | T63: 4.96103577 | U63: =IF('OPFOK OUDERDIEREN'!$H$15="ja",L63-((E63-G63*95%-I63)/E63*L63)*$R$6,L63-((E63-G63*80%-I63)/E63*L63)*$R$6) -> 4.96103577 | V63: 4.96103577 | W63: 4.96103577
A64: 55 | B64: 885.7 | E64: 1.026390591 | F64: 1.026390591 | G64: 0 | H64: 0 | I64: 0 | J64: 0.5727785436 | K64: 1 | L64: 5.14995589 | M64: 5.14995589 | N64: 5.14995589 | O64: 5.14995589 | P64: 5.14995589 | Q64: 5.14995589 | R64: 5.14995589 | S64: 5.14995589 | T64: 5.14995589 | U64: =IF('OPFOK OUDERDIEREN'!$H$15="ja",L64-((E64-G64*95%-I64)/E64*L64)*$R$6,L64-((E64-G64*80%-I64)/E64*L64)*$R$6) -> 5.14995589 | V64: 5.14995589 | W64: 5.14995589
A65: 56 | B65: 900 | E65: 1.045958731 | F65: 1.045958731 | G65: 0 | H65: 0 | I65: 0 | J65: 0.5834152262 | K65: 1 | L65: 5.345599469 | M65: 5.345599469 | N65: 5.345599469 | O65: 5.345599469 | P65: 5.345599469 | Q65: 5.345599469 | R65: 5.345599469 | S65: 5.345599469 | T65: 5.345599469 | U65: =IF('OPFOK OUDERDIEREN'!$H$15="ja",L65-((E65-G65*95%-I65)/E65*L65)*$R$6,L65-((E65-G65*80%-I65)/E65*L65)*$R$6) -> 5.345599469 | V65: 5.345599469 | W65: 5.345599469
A66: 57 | B66: 914.2 | E66: 1.065671176 | F66: 1.065671176 | G66: 0 | H66: 0 | I66: 0 | J66: 0.5942494354 | K66: 1 | L66: 5.547484572 | M66: 5.547484572 | N66: 5.547484572 | O66: 5.547484572 | P66: 5.547484572 | Q66: 5.547484572 | R66: 5.547484572 | S66: 5.547484572 | T66: 5.547484572 | U66: =IF('OPFOK OUDERDIEREN'!$H$15="ja",L66-((E66-G66*95%-I66)/E66*L66)*$R$6,L66-((E66-G66*80%-I66)/E66*L66)*$R$6) -> 5.547484572 | V66: 5.547484572 | W66: 5.547484572
A67: 58 | B67: 928.5 | E67: 1.085812262 | F67: 1.085812262 | G67: 0 | H67: 0 | I67: 0 | J67: 0.6052848394 | K67: 1 | L67: 5.757297139 | M67: 5.757297139 | N67: 5.757297139 | O67: 5.757297139 | P67: 5.757297139 | Q67: 5.757297139 | R67: 5.757297139 | S67: 5.757297139 | T67: 5.757297139 | U67: =IF('OPFOK OUDERDIEREN'!$H$15="ja",L67-((E67-G67*95%-I67)/E67*L67)*$R$6,L67-((E67-G67*80%-I67)/E67*L67)*$R$6) -> 5.757297139 | V67: 5.757297139 | W67: 5.757297139
A68: 59 | B68: 942.8 | E68: 1.106250909 | F68: 1.106250909 | G68: 0 | H68: 0 | I68: 0 | J68: 0.6165251744 | K68: 1 | L68: 5.974596246 | M68: 5.974596246 | N68: 5.974596246 | O68: 5.974596246 | P68: 5.974596246 | Q68: 5.974596246 | R68: 5.974596246 | S68: 5.974596246 | T68: 5.974596246 | U68: =IF('OPFOK OUDERDIEREN'!$H$15="ja",L68-((E68-G68*95%-I68)/E68*L68)*$R$6,L68-((E68-G68*80%-I68)/E68*L68)*$R$6) -> 5.974596246 | V68: 5.974596246 | W68: 5.974596246
A69: 60 | B69: 957.1 | E69: 1.126993855 | F69: 1.126993855 | G69: 0 | H69: 0 | I69: 0 | J69: 0.6279742461 | K69: 1 | L69: 6.199654499 | M69: 6.199654499 | N69: 6.199654499 | O69: 6.199654499 | P69: 6.199654499 | Q69: 6.199654499 | R69: 6.199654499 | S69: 6.199654499 | T69: 6.199654499 | U69: =IF('OPFOK OUDERDIEREN'!$H$15="ja",L69-((E69-G69*95%-I69)/E69*L69)*$R$6,L69-((E69-G69*80%-I69)/E69*L69)*$R$6) -> 6.199654499 | V69: 6.199654499 | W69: 6.199654499
A70: 61 | B70: 971.4 | E70: 1.148047836 | F70: 1.148047836 | G70: 0 | H70: 0 | I70: 0 | J70: 0.6396359307 | K70: 1 | L70: 6.432753977 | M70: 6.432753977 | N70: 6.432753977 | O70: 6.432753977 | P70: 6.432753977 | Q70: 6.432753977 | R70: 6.432753977 | S70: 6.432753977 | T70: 6.432753977 | U70: =IF('OPFOK OUDERDIEREN'!$H$15="ja",L70-((E70-G70*95%-I70)/E70*L70)*$R$6,L70-((E70-G70*80%-I70)/E70*L70)*$R$6) -> 6.432753977 | V70: 6.432753977 | W70: 6.432753977
A71: 62 | B71: 985.7 | E71: 1.169419589 | F71: 1.169419589 | G71: 0 | H71: 0 | I71: 0 | J71: 0.6515141765 | K71: 1 | L71: 6.674186542 | M71: 6.674186542 | N71: 6.674186542 | O71: 6.674186542 | P71: 6.674186542 | Q71: 6.674186542 | R71: 6.674186542 | S71: 6.674186542 | T71: 6.674186542 | U71: =IF('OPFOK OUDERDIEREN'!$H$15="ja",L71-((E71-G71*95%-I71)/E71*L71)*$R$6,L71-((E71-G71*80%-I71)/E71*L71)*$R$6) -> 6.674186542 | V71: 6.674186542 | W71: 6.674186542
A72: 63 | B72: 1000 | E72: 1.191115853 | F72: 1.191115853 | G72: 0 | H72: 0 | I72: 0 | J72: 0.6636130053 | K72: 1 | L72: 6.924254147 | M72: 6.924254147 | N72: 6.924254147 | O72: 6.924254147 | P72: 6.924254147 | Q72: 6.924254147 | R72: 6.924254147 | S72: 6.924254147 | T72: 6.924254147 | U72: =IF('OPFOK OUDERDIEREN'!$H$15="ja",L72-((E72-G72*95%-I72)/E72*L72)*$R$6,L72-((E72-G72*80%-I72)/E72*L72)*$R$6) -> 6.924254147 | V72: 6.924254147 | W72: 6.924254147
A73: 64 | B73: 1014.2 | E73: 1.212988161 | F73: 1.212988161 | G73: 0 | H73: 0 | I73: 0 | J73: 0.6759365132 | K73: 1 | L73: 7.182350174 | M73: 7.182350174 | N73: 7.182350174 | O73: 7.182350174 | P73: 7.182350174 | Q73: 7.182350174 | R73: 7.182350174 | S73: 7.182350174 | T73: 7.182350174 | U73: =IF('OPFOK OUDERDIEREN'!$H$15="ja",L73-((E73-G73*95%-I73)/E73*L73)*$R$6,L73-((E73-G73*80%-I73)/E73*L73)*$R$6) -> 7.182350174 | V73: 7.182350174 | W73: 7.182350174
A74: 65 | B74: 1028.5 | E74: 1.235351271 | F74: 1.235351271 | G74: 0 | H74: 0 | I74: 0 | J74: 0.6884888726 | K74: 1 | L74: 7.450604286 | M74: 7.450604286 | N74: 7.450604286 | O74: 7.450604286 | P74: 7.450604286 | Q74: 7.450604286 | R74: 7.450604286 | S74: 7.450604286 | T74: 7.450604286 | U74: =IF('OPFOK OUDERDIEREN'!$H$15="ja",L74-((E74-G74*95%-I74)/E74*L74)*$R$6,L74-((E74-G74*80%-I74)/E74*L74)*$R$6) -> 7.450604286 | V74: 7.450604286 | W74: 7.450604286
A75: 66 | B75: 1042.8 | E75: 1.258059055 | F75: 1.258059055 | G75: 0 | H75: 0 | I75: 0 | J75: 0.7012743333 | K75: 1 | L75: 7.728462043 | M75: 7.728462043 | N75: 7.728462043 | O75: 7.728462043 | P75: 7.728462043 | Q75: =(((($J75)-$J$3)/1000*$F75*24*365*$K75))+(((($J75)-$J$3)/1000*$G75*24*365*$K75)*(1-95%)) -> 7.728462043 | R75: 7.728462043 | S75: 7.728462043 | T75: 7.728462043 | U75: =IF('OPFOK OUDERDIEREN'!$H$15="ja",L75-((E75-G75*95%-I75)/E75*L75)*$R$6,L75-((E75-G75*80%-I75)/E75*L75)*$R$6) -> 7.728462043 | V75: 7.728462043 | W75: 7.728462043
A76: 67 | B76: 1057.1 | E76: 1.281118253 | F76: 1.281118253 | G76: 0 | H76: 0 | I76: 0 | J76: 0.7142972242 | K76: 1 | L76: 8.016269098 | M76: 8.016269098 | N76: 8.016269098 | O76: 8.016269098 | P76: 8.016269098 | Q76: 8.016269098 | R76: 8.016269098 | S76: 8.016269098 | T76: 8.016269098 | U76: =IF('OPFOK OUDERDIEREN'!$H$15="ja",L76-((E76-G76*95%-I76)/E76*L76)*$R$6,L76-((E76-G76*80%-I76)/E76*L76)*$R$6) -> 8.016269098 | V76: 8.016269098 | W76: 8.016269098
A77: 68 | B77: 1071.4 | E77: 1.304535601 | F77: 1.304535601 | G77: 0 | H77: 0 | I77: 0 | J77: 0.7275619545 | K77: 1 | L77: 8.314382928 | M77: 8.314382928 | N77: 8.314382928 | O77: 8.314382928 | P77: 8.314382928 | Q77: 8.314382928 | R77: 8.314382928 | S77: 8.314382928 | T77: 8.314382928 | U77: =IF('OPFOK OUDERDIEREN'!$H$15="ja",L77-((E77-G77*95%-I77)/E77*L77)*$R$6,L77-((E77-G77*80%-I77)/E77*L77)*$R$6) -> 8.314382928 | V77: 8.314382928 | W77: 8.314382928
A78: 69 | B78: 1085.7 | E78: 1.328317836 | F78: 1.328317836 | G78: 0 | H78: 0 | I78: 0 | J78: 0.741073015 | K78: 1 | L78: 8.623173209 | M78: 8.623173209 | N78: 8.623173209 | O78: 8.623173209 | P78: 8.623173209 | Q78: 8.623173209 | R78: 8.623173209 | S78: 8.623173209 | T78: 8.623173209 | U78: =IF('OPFOK OUDERDIEREN'!$H$15="ja",L78-((E78-G78*95%-I78)/E78*L78)*$R$6,L78-((E78-G78*80%-I78)/E78*L78)*$R$6) -> 8.623173209 | V78: 8.623173209 | W78: 8.623173209
A79: 70 | B79: 1100 | E79: 1.352471695 | F79: 1.352471695 | G79: 0 | H79: 0 | I79: 0 | J79: 0.7548349803 | K79: 1 | L79: 8.943022202 | M79: 8.943022202 | N79: 8.943022202 | O79: 8.943022202 | P79: 8.943022202 | Q79: 8.943022202 | R79: 8.943022202 | S79: 8.943022202 | T79: 8.943022202 | U79: =IF('OPFOK OUDERDIEREN'!$H$15="ja",L79-((E79-G79*95%-I79)/E79*L79)*$R$6,L79-((E79-G79*80%-I79)/E79*L79)*$R$6) -> 8.943022202 | V79: 8.943022202 | W79: 8.943022202
A80: 71 | B80: 1114.2 | E80: 1.376831034 | F80: 1.376831034 | G80: 0 | H80: 0 | I80: 0 | J80: 0.7688525097 | K80: 1 | L80: 9.273160764 | M80: 9.273160764 | N80: 9.273160764 | O80: 9.273160764 | P80: 9.273160764 | Q80: 9.273160764 | R80: 9.273160764 | S80: 9.273160764 | T80: 9.273160764 | U80: =IF('OPFOK OUDERDIEREN'!$H$15="ja",L80-((E80-G80*95%-I80)/E80*L80)*$R$6,L80-((E80-G80*80%-I80)/E80*L80)*$R$6) -> 9.273160764 | V80: 9.273160764 | W80: 9.273160764
A81: 72 | B81: 1128.5 | E81: 1.401745639 | F81: 1.401745639 | G81: 0 | H81: 0 | I81: 0 | J81: 0.7831303492 | K81: 1 | L81: 9.616286072 | M81: 9.616286072 | N81: 9.616286072 | O81: 9.616286072 | P81: 9.616286072 | Q81: 9.616286072 | R81: 9.616286072 | S81: 9.616286072 | T81: 9.616286072 | U81: =IF('OPFOK OUDERDIEREN'!$H$15="ja",L81-((E81-G81*95%-I81)/E81*L81)*$R$6,L81-((E81-G81*80%-I81)/E81*L81)*$R$6) -> 9.616286072 | V81: 9.616286072 | W81: 9.616286072
A82: 73 | B82: 1142.8 | E82: 1.427052033 | F82: 1.427052033 | G82: 0 | H82: 0 | I82: 0 | J82: 0.7976733327 | K82: 1 | L82: 9.97169504 | M82: 9.97169504 | N82: 9.97169504 | O82: 9.97169504 | P82: 9.97169504 | Q82: 9.97169504 | R82: 9.97169504 | S82: 9.97169504 | T82: 9.97169504 | U82: =IF('OPFOK OUDERDIEREN'!$H$15="ja",L82-((E82-G82*95%-I82)/E82*L82)*$R$6,L82-((E82-G82*80%-I82)/E82*L82)*$R$6) -> 9.97169504 | V82: 9.97169504 | W82: 9.97169504
A83: 74 | B83: 1157.1 | E83: 1.452756955 | F83: 1.452756955 | G83: 0 | H83: 0 | I83: 0 | J83: 0.8124863842 | K83: 1 | L83: 10.33982435 | M83: 10.33982435 | N83: 10.33982435 | O83: 10.33982435 | P83: 10.33982435 | Q83: 10.33982435 | R83: 10.33982435 | S83: 10.33982435 | T83: 10.33982435 | U83: =IF('OPFOK OUDERDIEREN'!$H$15="ja",L83-((E83-G83*95%-I83)/E83*L83)*$R$6,L83-((E83-G83*80%-I83)/E83*L83)*$R$6) -> 10.33982435 | V83: 10.33982435 | W83: 10.33982435
A84: 75 | B84: 1171.4 | E84: 1.478867142 | F84: 1.478867142 | G84: 0 | H84: 0 | I84: 0 | J84: 0.8275745188 | K84: 1 | L84: 10.72112541 | M84: 10.72112541 | N84: 10.72112541 | O84: 10.72112541 | P84: 10.72112541 | Q84: 10.72112541 | R84: 10.72112541 | S84: 10.72112541 | T84: 10.72112541 | U84: =IF('OPFOK OUDERDIEREN'!$H$15="ja",L84-((E84-G84*95%-I84)/E84*L84)*$R$6,L84-((E84-G84*80%-I84)/E84*L84)*$R$6) -> 10.72112541 | V84: 10.72112541 | W84: 10.72112541
A85: 76 | B85: 1185.7 | E85: 1.50538933 | F85: 1.50538933 | G85: 0 | H85: 0 | I85: 0 | J85: 0.842942845 | K85: 1 | L85: 11.11606476 | M85: 11.11606476 | N85: 11.11606476 | O85: 11.11606476 | P85: 11.11606476 | Q85: 11.11606476 | R85: 11.11606476 | S85: 11.11606476 | T85: 11.11606476 | U85: =IF('OPFOK OUDERDIEREN'!$H$15="ja",L85-((E85-G85*95%-I85)/E85*L85)*$R$6,L85-((E85-G85*80%-I85)/E85*L85)*$R$6) -> 11.11606476 | V85: 11.11606476 | W85: 11.11606476
A86: 77 | B86: 1200 | E86: 1.532330257 | F86: 1.532330257 | G86: 0 | H86: 0 | I86: 0 | J86: 0.8585965659 | K86: 1 | L86: 11.52512463 | M86: 11.52512463 | N86: 11.52512463 | O86: 11.52512463 | P86: 11.52512463 | Q86: 11.52512463 | R86: 11.52512463 | S86: 11.52512463 | T86: 11.52512463 | U86: =IF('OPFOK OUDERDIEREN'!$H$15="ja",L86-((E86-G86*95%-I86)/E86*L86)*$R$6,L86-((E86-G86*80%-I86)/E86*L86)*$R$6) -> 11.52512463 | V86: 11.52512463 | W86: 11.52512463
A87: 78 | B87: 1214.2 | E87: 1.559503795 | F87: 1.559503795 | G87: 0 | H87: 0 | I87: 0 | J87: 0.8745409815 | K87: 1 | L87: 11.94732582 | M87: 11.94732582 | N87: 11.94732582 | O87: 11.94732582 | P87: 11.94732582 | Q87: 11.94732582 | R87: 11.94732582 | S87: 11.94732582 | T87: 11.94732582 | U87: =IF('OPFOK OUDERDIEREN'!$H$15="ja",L87-((E87-G87*95%-I87)/E87*L87)*$R$6,L87-((E87-G87*80%-I87)/E87*L87)*$R$6) -> 11.94732582 | V87: 11.94732582 | W87: 11.94732582
A88: 79 | B88: 1228.5 | E88: 1.587299367 | F88: 1.587299367 | G88: 0 | H88: 0 | I88: 0 | J88: 0.8907814901 | K88: 1 | L88: 12.3860872 | M88: 12.3860872 | N88: 12.3860872 | O88: 12.3860872 | P88: 12.3860872 | Q88: 12.3860872 | R88: 12.3860872 | S88: 12.3860872 | T88: 12.3860872 | U88: =IF('OPFOK OUDERDIEREN'!$H$15="ja",L88-((E88-G88*95%-I88)/E88*L88)*$R$6,L88-((E88-G88*80%-I88)/E88*L88)*$R$6) -> 12.3860872 | V88: 12.3860872 | W88: 12.3860872
A89: 80 | B89: 1242.8 | E89: 1.615533844 | F89: 1.615533844 | G89: 0 | H89: 0 | I89: 0 | J89: 0.9073235901 | K89: 1 | L89: 12.84051283 | M89: 12.84051283 | N89: 12.84051283 | O89: 12.84051283 | P89: 12.84051283 | Q89: 12.84051283 | R89: 12.84051283 | S89: 12.84051283 | T89: 12.84051283 | U89: =IF('OPFOK OUDERDIEREN'!$H$15="ja",L89-((E89-G89*95%-I89)/E89*L89)*$R$6,L89-((E89-G89*80%-I89)/E89*L89)*$R$6) -> 12.84051283 | V89: 12.84051283 | W89: 12.84051283
A90: 81 | B90: 1257.1 | E90: 1.644213962 | F90: 1.644213962 | G90: 0 | H90: 0 | I90: 0 | J90: 0.9241728823 | K90: 1 | L90: 13.31115249 | M90: 13.31115249 | N90: 13.31115249 | O90: 13.31115249 | P90: 13.31115249 | Q90: 13.31115249 | R90: 13.31115249 | S90: 13.31115249 | T90: 13.31115249 | U90: =IF('OPFOK OUDERDIEREN'!$H$15="ja",L90-((E90-G90*95%-I90)/E90*L90)*$R$6,L90-((E90-G90*80%-I90)/E90*L90)*$R$6) -> 13.31115249 | V90: 13.31115249 | W90: 13.31115249
A91: 82 | B91: 1271.4 | E91: 1.673346459 | F91: 1.673346459 | G91: 0 | H91: 0 | I91: 0 | J91: 0.9413350713 | K91: 1 | L91: 13.79857424 | M91: 13.79857424 | N91: 13.79857424 | O91: 13.79857424 | P91: 13.79857424 | Q91: 13.79857424 | R91: 13.79857424 | S91: 13.79857424 | T91: 13.79857424 | U91: =IF('OPFOK OUDERDIEREN'!$H$15="ja",L91-((E91-G91*95%-I91)/E91*L91)*$R$6,L91-((E91-G91*80%-I91)/E91*L91)*$R$6) -> 13.79857424 | V91: 13.79857424 | W91: 13.79857424
A92: 83 | B92: 1285.7 | E92: 1.702938072 | F92: 1.702938072 | G92: 0 | H92: 0 | I92: 0 | J92: 0.9588159676 | K92: 1 | L92: 14.30336493 | M92: 14.30336493 | N92: 14.30336493 | O92: 14.30336493 | P92: 14.30336493 | Q92: 14.30336493 | R92: 14.30336493 | S92: 14.30336493 | T92: 14.30336493 | U92: =IF('OPFOK OUDERDIEREN'!$H$15="ja",L92-((E92-G92*95%-I92)/E92*L92)*$R$6,L92-((E92-G92*80%-I92)/E92*L92)*$R$6) -> 14.30336493 | V92: 14.30336493 | W92: 14.30336493
A93: 84 | B93: 1300 | E93: 1.732995539 | F93: 1.732995539 | G93: 0 | H93: 0 | I93: 0 | J93: 0.9766214899 | K93: 1 | L93: 14.8261308 | M93: 14.8261308 | N93: 14.8261308 | O93: 14.8261308 | P93: 14.8261308 | Q93: 14.8261308 | R93: 14.8261308 | S93: 14.8261308 | T93: 14.8261308 | U93: =IF('OPFOK OUDERDIEREN'!$H$15="ja",L93-((E93-G93*95%-I93)/E93*L93)*$R$6,L93-((E93-G93*80%-I93)/E93*L93)*$R$6) -> 14.8261308 | V93: 14.8261308 | W93: 14.8261308
A94: 85 | B94: 1314.2 | E94: 1.763310444 | F94: 1.763310444 | G94: 0 | H94: 0 | I94: 0 | J94: 0.9947576664 | K94: 1 | L94: 15.36562326 | M94: 15.36562326 | N94: 15.36562326 | O94: 15.36562326 | P94: 15.36562326 | Q94: 15.36562326 | R94: 15.36562326 | S94: 15.36562326 | T94: 15.36562326 | U94: =IF('OPFOK OUDERDIEREN'!$H$15="ja",L94-((E94-G94*95%-I94)/E94*L94)*$R$6,L94-((E94-G94*80%-I94)/E94*L94)*$R$6) -> 15.36562326 | V94: 15.36562326 | W94: 15.36562326
A95: 86 | B95: 1328.5 | E95: 1.794316455 | F95: 1.794316455 | G95: 0 | H95: 0 | I95: 0 | J95: 1.013230638 | K95: 1 | L95: 15.92617412 | M95: 15.92617412 | N95: 15.92617412 | O95: 15.92617412 | P95: 15.92617412 | Q95: 15.92617412 | R95: 15.92617412 | S95: 15.92617412 | T95: 15.92617412 | U95: =IF('OPFOK OUDERDIEREN'!$H$15="ja",L95-((E95-G95*95%-I95)/E95*L95)*$R$6,L95-((E95-G95*80%-I95)/E95*L95)*$R$6) -> 15.92617412 | V95: 15.92617412 | W95: 15.92617412
A96: 87 | B96: 1342.8 | E96: 1.825808486 | F96: 1.825808486 | G96: 0 | H96: 0 | I96: 0 | J96: 1.032046658 | K96: 1 | L96: 16.50663922 | M96: 16.50663922 | N96: 16.50663922 | O96: 16.50663922 | P96: 16.50663922 | Q96: 16.50663922 | R96: 16.50663922 | S96: 16.50663922 | T96: 16.50663922 | U96: =IF('OPFOK OUDERDIEREN'!$H$15="ja",L96-((E96-G96*95%-I96)/E96*L96)*$R$6,L96-((E96-G96*80%-I96)/E96*L96)*$R$6) -> 16.50663922 | V96: 16.50663922 | W96: 16.50663922
A97: 88 | B97: 1357.1 | E97: 1.857793272 | F97: 1.857793272 | G97: 0 | H97: 0 | I97: 0 | J97: 1.051212098 | K97: 1 | L97: 17.10770852 | M97: 17.10770852 | N97: 17.10770852 | O97: 17.10770852 | P97: 17.10770852 | Q97: 17.10770852 | R97: 17.10770852 | S97: 17.10770852 | T97: 17.10770852 | U97: =IF('OPFOK OUDERDIEREN'!$H$15="ja",L97-((E97-G97*95%-I97)/E97*L97)*$R$6,L97-((E97-G97*80%-I97)/E97*L97)*$R$6) -> 17.10770852 | V97: 17.10770852 | W97: 17.10770852
A98: 89 | B98: 1371.4 | E98: 1.890277552 | F98: 1.890277552 | G98: 0 | H98: 0 | I98: 0 | J98: 1.070733446 | K98: 1 | L98: 17.73009455 | M98: 17.73009455 | N98: 17.73009455 | O98: 17.73009455 | P98: 17.73009455 | Q98: 17.73009455 | R98: 17.73009455 | S98: 17.73009455 | T98: 17.73009455 | U98: =IF('OPFOK OUDERDIEREN'!$H$15="ja",L98-((E98-G98*95%-I98)/E98*L98)*$R$6,L98-((E98-G98*80%-I98)/E98*L98)*$R$6) -> 17.73009455 | V98: 17.73009455 | W98: 17.73009455
A99: 90 | B99: 1385.7 | E99: 1.923268062 | F99: 1.923268062 | G99: 0 | H99: 0 | I99: 0 | J99: 1.090617312 | K99: 1 | L99: 18.37453313 | M99: 18.37453313 | N99: 18.37453313 | O99: 18.37453313 | P99: 18.37453313 | Q99: 18.37453313 | R99: 18.37453313 | S99: 18.37453313 | T99: 18.37453313 | U99: =IF('OPFOK OUDERDIEREN'!$H$15="ja",L99-((E99-G99*95%-I99)/E99*L99)*$R$6,L99-((E99-G99*80%-I99)/E99*L99)*$R$6) -> 18.37453313 | V99: 18.37453313 | W99: 18.37453313
A100: 91 | B100: 1400 | E100: 1.956771541 | F100: 1.956771541 | G100: 0 | H100: 0 | I100: 0 | J100: 1.110870428 | K100: 1 | L100: 19.04178404 | M100: 19.04178404 | N100: 19.04178404 | O100: 19.04178404 | P100: 19.04178404 | Q100: 19.04178404 | R100: 19.04178404 | S100: 19.04178404 | T100: 19.04178404 | U100: =IF('OPFOK OUDERDIEREN'!$H$15="ja",L100-((E100-G100*95%-I100)/E100*L100)*$R$6,L100-((E100-G100*80%-I100)/E100*L100)*$R$6) -> 19.04178404 | V100: 19.04178404 | W100: 19.04178404
A101: 92 | B101: 1414.2 | E101: 1.990554981 | F101: 1.990554981 | G101: 0 | H101: 0 | I101: 0 | J101: 1.13149965 | K101: 1 | L101: 19.73025544 | M101: 19.73025544 | N101: 19.73025544 | O101: 19.73025544 | P101: 19.73025544 | Q101: 19.73025544 | R101: 19.73025544 | S101: 19.73025544 | T101: 19.73025544 | U101: =IF('OPFOK OUDERDIEREN'!$H$15="ja",L101-((E101-G101*95%-I101)/E101*L101)*$R$6,L101-((E101-G101*80%-I101)/E101*L101)*$R$6) -> 19.73025544 | V101: 19.73025544 | W101: 19.73025544
A102: 93 | B102: 1428.5 | E102: 2.025100904 | F102: 2.025100904 | G102: 0 | H102: 0 | I102: 0 | J102: 1.152511965 | K102: 1 | L102: 20.44542846 | M102: 20.44542846 | N102: 20.44542846 | O102: 20.44542846 | P102: 20.44542846 | Q102: 20.44542846 | R102: 20.44542846 | S102: 20.44542846 | T102: 20.44542846 | U102: =IF('OPFOK OUDERDIEREN'!$H$15="ja",L102-((E102-G102*95%-I102)/E102*L102)*$R$6,L102-((E102-G102*80%-I102)/E102*L102)*$R$6) -> 20.44542846 | V102: 20.44542846 | W102: 20.44542846
A103: 94 | B103: 1442.8 | E103: 2.06017996 | F103: 2.06017996 | G103: 0 | H103: 0 | I103: 0 | J103: 1.173914484 | K103: 1 | L103: 21.18584183 | M103: 21.18584183 | N103: 21.18584183 | O103: 21.18584183 | P103: 21.18584183 | Q103: 21.18584183 | R103: 21.18584183 | S103: 21.18584183 | T103: 21.18584183 | U103: =IF('OPFOK OUDERDIEREN'!$H$15="ja",L103-((E103-G103*95%-I103)/E103*L103)*$R$6,L103-((E103-G103*80%-I103)/E103*L103)*$R$6) -> 21.18584183 | V103: 21.18584183 | W103: 21.18584183
A104: 95 | B104: 1457.1 | E104: 2.095798886 | F104: 2.095798886 | G104: 0 | H104: 0 | I104: 0 | J104: 1.195714455 | K104: 1 | L104: 21.95235872 | M104: 21.95235872 | N104: 21.95235872 | O104: 21.95235872 | P104: 21.95235872 | Q104: 21.95235872 | R104: 21.95235872 | S104: 21.95235872 | T104: 21.95235872 | U104: =IF('OPFOK OUDERDIEREN'!$H$15="ja",L104-((E104-G104*95%-I104)/E104*L104)*$R$6,L104-((E104-G104*80%-I104)/E104*L104)*$R$6) -> 21.95235872 | V104: 21.95235872 | W104: 21.95235872
A105: 96 | B105: 1471.4 | E105: 2.131964421 | F105: 2.131964421 | G105: 0 | H105: 0 | I105: 0 | J105: 1.217919259 | K105: 1 | L105: 22.74587022 | M105: 22.74587022 | N105: 22.74587022 | O105: 22.74587022 | P105: 22.74587022 | Q105: 22.74587022 | R105: 22.74587022 | S105: 22.74587022 | T105: 22.74587022 | U105: =IF('OPFOK OUDERDIEREN'!$H$15="ja",L105-((E105-G105*95%-I105)/E105*L105)*$R$6,L105-((E105-G105*80%-I105)/E105*L105)*$R$6) -> 22.74587022 | V105: 22.74587022 | W105: 22.74587022
A106: 97 | B106: 1485.7 | E106: 2.1686833 | F106: 2.1686833 | G106: 0 | H106: 0 | I106: 0 | J106: 1.240536413 | K106: 1 | L106: 23.56729608 | M106: 23.56729608 | N106: 23.56729608 | O106: 23.56729608 | P106: 23.56729608 | Q106: 23.56729608 | R106: 23.56729608 | S106: 23.56729608 | T106: 23.56729608 | U106: =IF('OPFOK OUDERDIEREN'!$H$15="ja",L106-((E106-G106*95%-I106)/E106*L106)*$R$6,L106-((E106-G106*80%-I106)/E106*L106)*$R$6) -> 23.56729608 | V106: 23.56729608 | W106: 23.56729608
A107: 98 | B107: 1500 | E107: 2.205962263 | F107: 2.205962263 | G107: 0 | H107: 0 | I107: 0 | J107: 1.263573575 | K107: 1 | L107: 24.41758565 | M107: 24.41758565 | N107: 24.41758565 | O107: 24.41758565 | P107: 24.41758565 | Q107: 24.41758565 | R107: 24.41758565 | S107: 24.41758565 | T107: 24.41758565 | U107: =IF('OPFOK OUDERDIEREN'!$H$15="ja",L107-((E107-G107*95%-I107)/E107*L107)*$R$6,L107-((E107-G107*80%-I107)/E107*L107)*$R$6) -> 24.41758565 | V107: 24.41758565 | W107: 24.41758565
A108: 99 | B108: 1514.2 | E108: 2.243541406 | F108: 2.243541406 | G108: 0 | H108: 0 | I108: 0 | J108: 1.287038544 | K108: 1 | L108: 25.29471257 | M108: 25.29471257 | N108: 25.29471257 | O108: 25.29471257 | P108: 25.29471257 | Q108: 25.29471257 | R108: 25.29471257 | S108: 25.29471257 | T108: 25.29471257 | U108: =IF('OPFOK OUDERDIEREN'!$H$15="ja",L108-((E108-G108*95%-I108)/E108*L108)*$R$6,L108-((E108-G108*80%-I108)/E108*L108)*$R$6) -> 25.29471257 | V108: 25.29471257 | W108: 25.29471257
A109: 100 | B109: 1528.5 | E109: 2.281956712 | F109: 2.281956712 | G109: 0 | H109: 0 | I109: 0 | J109: 1.310939266 | K109: 1 | L109: 26.20559832 | M109: 26.20559832 | N109: 26.20559832 | O109: 26.20559832 | P109: 26.20559832 | Q109: 26.20559832 | R109: 26.20559832 | S109: 26.20559832 | T109: 26.20559832 | U109: =IF('OPFOK OUDERDIEREN'!$H$15="ja",L109-((E109-G109*95%-I109)/E109*L109)*$R$6,L109-((E109-G109*80%-I109)/E109*L109)*$R$6) -> 26.20559832 | V109: 26.20559832 | W109: 26.20559832
A110: 101 | B110: 1542.8 | E110: 2.320952266 | F110: 2.320952266 | G110: 0 | H110: 0 | I110: 0 | J110: 1.335283832 | K110: 1 | L110: 27.1483791 | M110: 27.1483791 | N110: 27.1483791 | O110: 27.1483791 | P110: 27.1483791 | Q110: 27.1483791 | R110: 27.1483791 | S110: 27.1483791 | T110: 27.1483791 | U110: =IF('OPFOK OUDERDIEREN'!$H$15="ja",L110-((E110-G110*95%-I110)/E110*L110)*$R$6,L110-((E110-G110*80%-I110)/E110*L110)*$R$6) -> 27.1483791 | V110: 27.1483791 | W110: 27.1483791
A111: 102 | B111: 1557.1 | E111: 2.360534804 | F111: 2.360534804 | G111: 0 | H111: 0 | I111: 0 | J111: 1.360080484 | K111: 1 | L111: 28.12413171 | M111: 28.12413171 | N111: 28.12413171 | O111: 28.12413171 | P111: 28.12413171 | Q111: 28.12413171 | R111: 28.12413171 | S111: 28.12413171 | T111: 28.12413171 | U111: =IF('OPFOK OUDERDIEREN'!$H$15="ja",L111-((E111-G111*95%-I111)/E111*L111)*$R$6,L111-((E111-G111*80%-I111)/E111*L111)*$R$6) -> 28.12413171 | V111: 28.12413171 | W111: 28.12413171
A112: 103 | B112: 1571.4 | E112: 2.400711065 | F112: 2.400711065 | G112: 0 | H112: 0 | I112: 0 | J112: 1.385337618 | K112: 1 | L112: 29.13396725 | M112: 29.13396725 | N112: 29.13396725 | O112: 29.13396725 | P112: 29.13396725 | Q112: 29.13396725 | R112: 29.13396725 | S112: 29.13396725 | T112: 29.13396725 | U112: =IF('OPFOK OUDERDIEREN'!$H$15="ja",L112-((E112-G112*95%-I112)/E112*L112)*$R$6,L112-((E112-G112*80%-I112)/E112*L112)*$R$6) -> 29.13396725 | V112: 29.13396725 | W112: 29.13396725
A113: 104 | B113: 1585.7 | E113: 2.441487787 | F113: 2.441487787 | G113: 0 | H113: 0 | I113: 0 | J113: 1.411063785 | K113: 1 | L113: 30.17903217 | M113: 30.17903217 | N113: 30.17903217 | O113: 30.17903217 | P113: 30.17903217 | Q113: 30.17903217 | R113: 30.17903217 | S113: 30.17903217 | T113: 30.17903217 | U113: =IF('OPFOK OUDERDIEREN'!$H$15="ja",L113-((E113-G113*95%-I113)/E113*L113)*$R$6,L113-((E113-G113*80%-I113)/E113*L113)*$R$6) -> 30.17903217 | V113: 30.17903217 | W113: 30.17903217
A114: 105 | B114: 1600 | E114: 2.482871705 | F114: 2.482871705 | G114: 0 | H114: 0 | I114: 0 | J114: 1.437267695 | K114: 1 | L114: 31.26050932 | M114: 31.26050932 | N114: 31.26050932 | O114: 31.26050932 | P114: 31.26050932 | Q114: 31.26050932 | R114: 31.26050932 | S114: 31.26050932 | T114: 31.26050932 | U114: =IF('OPFOK OUDERDIEREN'!$H$15="ja",L114-((E114-G114*95%-I114)/E114*L114)*$R$6,L114-((E114-G114*80%-I114)/E114*L114)*$R$6) -> 31.26050932 | V114: 31.26050932 | W114: 31.26050932
A115: 106 | B115: 1614.2 | E115: 2.524573719 | F115: 2.524573719 | G115: 0 | H115: 0 | I115: 0 | J115: 1.46395822 | K115: 1 | L115: 32.37582514 | M115: 32.37582514 | N115: 32.37582514 | O115: 32.37582514 | P115: 32.37582514 | Q115: 32.37582514 | R115: 32.37582514 | S115: 32.37582514 | T115: 32.37582514 | U115: =IF('OPFOK OUDERDIEREN'!$H$15="ja",L115-((E115-G115*95%-I115)/E115*L115)*$R$6,L115-((E115-G115*80%-I115)/E115*L115)*$R$6) -> 32.37582514 | V115: 32.37582514 | W115: 32.37582514
A116: 107 | B116: 1628.5 | E116: 2.56718788 | F116: 2.56718788 | G116: 0 | H116: 0 | I116: 0 | J116: 1.491144398 | K116: 1 | L116: 33.53369895 | M116: 33.53369895 | N116: 33.53369895 | O116: 33.53369895 | P116: 33.53369895 | Q116: 33.53369895 | R116: 33.53369895 | S116: 33.53369895 | T116: 33.53369895 | U116: =IF('OPFOK OUDERDIEREN'!$H$15="ja",L116-((E116-G116*95%-I116)/E116*L116)*$R$6,L116-((E116-G116*80%-I116)/E116*L116)*$R$6) -> 33.53369895 | V116: 33.53369895 | W116: 33.53369895
A117: 108 | B117: 1642.8 | E117: 2.610429404 | F117: 2.610429404 | G117: 0 | H117: 0 | I117: 0 | J117: 1.518835431 | K117: 1 | L117: 34.73175897 | M117: 34.73175897 | N117: 34.73175897 | O117: 34.73175897 | P117: 34.73175897 | Q117: 34.73175897 | R117: 34.73175897 | S117: 34.73175897 | T117: 34.73175897 | U117: =IF('OPFOK OUDERDIEREN'!$H$15="ja",L117-((E117-G117*95%-I117)/E117*L117)*$R$6,L117-((E117-G117*80%-I117)/E117*L117)*$R$6) -> 34.73175897 | V117: 34.73175897 | W117: 34.73175897
A118: 109 | B118: 1657.1 | E118: 2.654305027 | F118: 2.654305027 | G118: 0 | H118: 0 | I118: 0 | J118: 1.547040695 | K118: 1 | L118: 35.97134475 | M118: 35.97134475 | N118: 35.97134475 | O118: 35.97134475 | P118: 35.97134475 | Q118: 35.97134475 | R118: 35.97134475 | S118: 35.97134475 | T118: 35.97134475 | U118: =IF('OPFOK OUDERDIEREN'!$H$15="ja",L118-((E118-G118*95%-I118)/E118*L118)*$R$6,L118-((E118-G118*80%-I118)/E118*L118)*$R$6) -> 35.97134475 | V118: 35.97134475 | W118: 35.97134475
A119: 110 | B119: 1671.4 | E119: 2.698821486 | F119: 2.698821486 | G119: 0 | H119: 0 | I119: 0 | J119: 1.575769741 | K119: 1 | L119: 37.25383801 | M119: 37.25383801 | N119: 37.25383801 | O119: 37.25383801 | P119: 37.25383801 | Q119: 37.25383801 | R119: 37.25383801 | S119: 37.25383801 | T119: 37.25383801 | U119: =IF('OPFOK OUDERDIEREN'!$H$15="ja",L119-((E119-G119*95%-I119)/E119*L119)*$R$6,L119-((E119-G119*80%-I119)/E119*L119)*$R$6) -> 37.25383801 | V119: 37.25383801 | W119: 37.25383801
A120: 111 | B120: 1685.7 | E120: 2.743985521 | F120: 2.743985521 | G120: 0 | H120: 0 | I120: 0 | J120: 1.605032294 | K120: 1 | L120: 38.58066388 | M120: 38.58066388 | N120: 38.58066388 | O120: 38.58066388 | P120: 38.58066388 | Q120: 38.58066388 | R120: 38.58066388 | S120: 38.58066388 | T120: 38.58066388 | U120: =IF('OPFOK OUDERDIEREN'!$H$15="ja",L120-((E120-G120*95%-I120)/E120*L120)*$R$6,L120-((E120-G120*80%-I120)/E120*L120)*$R$6) -> 38.58066388 | V120: 38.58066388 | W120: 38.58066388
A121: 112 | B121: 1700 | E121: 2.789803867 | F121: 2.789803867 | G121: 0 | H121: 0 | I121: 0 | J121: 1.634838262 | K121: 1 | L121: 39.9532922 | M121: 39.9532922 | N121: 39.9532922 | O121: 39.9532922 | P121: 39.9532922 | Q121: 39.9532922 | R121: 39.9532922 | S121: 39.9532922 | T121: 39.9532922 | U121: =IF('OPFOK OUDERDIEREN'!$H$15="ja",L121-((E121-G121*95%-I121)/E121*L121)*$R$6,L121-((E121-G121*80%-I121)/E121*L121)*$R$6) -> 39.9532922 | V121: 39.9532922 | W121: 39.9532922
A122: 113 | B122: 1714.2 | E122: 2.83595592 | F122: 2.83595592 | G122: 0 | H122: 0 | I122: 0 | J122: 1.665197737 | K122: 1 | L122: 41.36846385 | M122: 41.36846385 | N122: 41.36846385 | O122: 41.36846385 | P122: 41.36846385 | Q122: 41.36846385 | R122: 41.36846385 | S122: 41.36846385 | T122: 41.36846385 | U122: =IF('OPFOK OUDERDIEREN'!$H$15="ja",L122-((E122-G122*95%-I122)/E122*L122)*$R$6,L122-((E122-G122*80%-I122)/E122*L122)*$R$6) -> 41.36846385 | V122: 41.36846385 | W122: 41.36846385
A123: 114 | B123: 1728.5 | E123: =0.000000000384*B123^3-0.000000342064*B123^2+0.001060852819*B123+0.088327034395 -> 2.883098409 | F123: =E123-G123 -> 2.883098409 | G123: =IF($R$4>0<E123,E123,IF($R$4>E123,E123,$R$4)) -> 0 | H123: =IF(E123<$R$5,E123-G123,$R$5) -> 0 | I123: =MIN(R$5,E123-G123) -> 0 | J123: 1.696120997 | K123: 1 | L123: =J123/1000*E123*24*365 -> 42.83713362 | M123: =IF(E123>$R$5,L123-(R$5)/E123*L123*97%,L123-(E123)/E123*L123*97%) -> 42.83713362 | N123: =(((($J123*(1-$R$2))-$J$3)/1000*$F123*24*365*$K123)*(1-R$5))+(((($J123*(1-$R$2))-$J$3)/1000*$G123*24*365*$K123)*(1-R$3)) -> 42.83713362 | O123: =(((($J123)-$J$3)/1000*$F123*24*365*$K123))+(((($J123*(1-$R$2))-$J$3)/1000*$G123*24*365*$K123)*(1-R$3)) -> 42.83713362 | P123: =IF(I123=0,L123,IF(I123>$R$5,L123-(R$5)/E123*L123*97%,L123-(I123)/E123*L123*97%)) -> 42.83713362 | Q123: 42.83713362 | R123: =IF(E123-G123-H123>=0,L123-((E123-G123*80%-H123*95%)/E123*L123)*$R$6,IF(G123>H123,L123-((E123-G123)/E123*L123)*$R$6,L123-((E123-H123)/E123*L123)*$R$6)) -> 42.83713362 | S123: =IF(E123-G123-H123>=0,L123-((E123-G123-H123)/E123*L123)*$R$6,IF(G123>H123,L123-((E123-G123)/E123*L123)*$R$6,L123-((E123-H123)/E123*L123)*$R$6)) -> 42.83713362 | T123: =L123-(E123-H123)/E123*L123*$R$6 -> 42.83713362 | U123: =IF('OPFOK OUDERDIEREN'!$H$15="ja",L123-((E123-G123*95%-I123)/E123*L123)*$R$6,L123-((E123-G123*80%-I123)/E123*L123)*$R$6) -> 42.83713362 | V123: =L123-((E123-G123-I123)/E123*L123)*$R$6 -> 42.83713362 | W123: =L123-(E123-H123)/E123*L123*$R$6 -> 42.83713362
A124: 115 | B124: 1742.8 | E124: 2.930915374 | F124: 2.930915374 | G124: 0 | H124: 0 | I124: 0 | J124: 1.727618511 | K124: 1 | L124: 44.35629202 | M124: 44.35629202 | N124: 44.35629202 | O124: 44.35629202 | P124: 44.35629202 | Q124: 44.35629202 | R124: 44.35629202 | S124: 44.35629202 | T124: 44.35629202 | U124: =IF('OPFOK OUDERDIEREN'!$H$15="ja",L124-((E124-G124*95%-I124)/E124*L124)*$R$6,L124-((E124-G124*80%-I124)/E124*L124)*$R$6) -> 44.35629202 | V124: 44.35629202 | W124: 44.35629202
A125: 116 | B125: 1757.1 | E125: 2.979413553 | F125: 2.979413553 | G125: 0 | H125: 0 | I125: 0 | J125: 1.759700945 | K125: 1 | L125: 45.92760117 | M125: 45.92760117 | N125: 45.92760117 | O125: 45.92760117 | P125: 45.92760117 | Q125: 45.92760117 | R125: 45.92760117 | S125: 45.92760117 | T125: 45.92760117 | U125: =IF('OPFOK OUDERDIEREN'!$H$15="ja",L125-((E125-G125*95%-I125)/E125*L125)*$R$6,L125-((E125-G125*80%-I125)/E125*L125)*$R$6) -> 45.92760117 | V125: 45.92760117 | W125: 45.92760117
A126: 117 | B126: 1771.4 | E126: 3.028599683 | F126: 3.028599683 | G126: 0 | H126: 0 | I126: 0 | J126: 1.79237916 | K126: 1 | L126: 47.55277487 | M126: 47.55277487 | N126: 47.55277487 | O126: 47.55277487 | P126: 47.55277487 | Q126: 47.55277487 | R126: 47.55277487 | S126: 47.55277487 | T126: 47.55277487 | U126: =IF('OPFOK OUDERDIEREN'!$H$15="ja",L126-((E126-G126*95%-I126)/E126*L126)*$R$6,L126-((E126-G126*80%-I126)/E126*L126)*$R$6) -> 47.55277487 | V126: 47.55277487 | W126: 47.55277487
A127: 118 | B127: 1785.7 | E127: 3.078480503 | F127: 3.078480503 | G127: 0 | H127: 0 | I127: 0 | J127: 1.82566422 | K127: 1 | L127: 49.23358016 | M127: 49.23358016 | N127: 49.23358016 | O127: 49.23358016 | P127: 49.23358016 | Q127: 49.23358016 | R127: 49.23358016 | S127: 49.23358016 | T127: 49.23358016 | U127: =IF('OPFOK OUDERDIEREN'!$H$15="ja",L127-((E127-G127*95%-I127)/E127*L127)*$R$6,L127-((E127-G127*80%-I127)/E127*L127)*$R$6) -> 49.23358016 | V127: 49.23358016 | W127: 49.23358016
A128: 119 | B128: 1800 | E128: 3.129062749 | F128: 3.129062749 | G128: 0 | H128: 0 | I128: 0 | J128: 1.859567395 | K128: 1 | L128: 50.97183884 | M128: 50.97183884 | N128: 50.97183884 | O128: 50.97183884 | P128: 50.97183884 | Q128: 50.97183884 | R128: 50.97183884 | S128: 50.97183884 | T128: 50.97183884 | U128: =IF('OPFOK OUDERDIEREN'!$H$15="ja",L128-((E128-G128*95%-I128)/E128*L128)*$R$6,L128-((E128-G128*80%-I128)/E128*L128)*$R$6) -> 50.97183884 | V128: 50.97183884 | W128: 50.97183884
A129: 120 | B129: 1814.2 | E129: 3.179992009 | F129: 3.179992009 | G129: 0 | H129: 0 | I129: 0 | J129: 1.894100162 | K129: 1 | L129: 52.76343681 | M129: 52.76343681 | N129: 52.76343681 | O129: 52.76343681 | P129: 52.76343681 | Q129: 52.76343681 | R129: 52.76343681 | S129: 52.76343681 | T129: 52.76343681 | U129: =IF('OPFOK OUDERDIEREN'!$H$15="ja",L129-((E129-G129*95%-I129)/E129*L129)*$R$6,L129-((E129-G129*80%-I129)/E129*L129)*$R$6) -> 52.76343681 | V129: 52.76343681 | W129: 52.76343681
A130: 121 | B130: 1828.5 | E130: 3.231992297 | F130: 3.231992297 | G130: 0 | H130: 0 | I130: 0 | J130: 1.929274214 | K130: 1 | L130: 54.62209873 | M130: 54.62209873 | N130: 54.62209873 | O130: 54.62209873 | P130: 54.62209873 | Q130: 54.62209873 | R130: 54.62209873 | S130: 54.62209873 | T130: 54.62209873 | U130: =IF('OPFOK OUDERDIEREN'!$H$15="ja",L130-((E130-G130*95%-I130)/E130*L130)*$R$6,L130-((E130-G130*80%-I130)/E130*L130)*$R$6) -> 54.62209873 | V130: 54.62209873 | W130: 54.62209873
A131: 122 | B131: 1842.8 | E131: 3.284714176 | F131: 3.284714176 | G131: 0 | H131: 0 | I131: 0 | J131: 1.965101459 | K131: 1 | L131: 56.54401839 | M131: 56.54401839 | N131: 56.54401839 | O131: 56.54401839 | P131: 56.54401839 | Q131: 56.54401839 | R131: 56.54401839 | S131: 56.54401839 | T131: 56.54401839 | U131: =IF('OPFOK OUDERDIEREN'!$H$15="ja",L131-((E131-G131*95%-I131)/E131*L131)*$R$6,L131-((E131-G131*80%-I131)/E131*L131)*$R$6) -> 56.54401839 | V131: 56.54401839 | W131: 56.54401839
A132: 123 | B132: 1857.1 | E132: 3.338164383 | F132: 3.338164383 | G132: 0 | H132: 0 | I132: 0 | J132: 2.001594028 | K132: 1 | L132: 58.53125307 | M132: 58.53125307 | N132: 58.53125307 | O132: 58.53125307 | P132: 58.53125307 | Q132: 58.53125307 | R132: 58.53125307 | S132: 58.53125307 | T132: 58.53125307 | U132: =IF('OPFOK OUDERDIEREN'!$H$15="ja",L132-((E132-G132*95%-I132)/E132*L132)*$R$6,L132-((E132-G132*80%-I132)/E132*L132)*$R$6) -> 58.53125307 | V132: 58.53125307 | W132: 58.53125307
A133: 124 | B133: 1871.4 | E133: 3.392349656 | F133: 3.392349656 | G133: 0 | H133: 0 | I133: 0 | J133: 2.038764276 | K133: 1 | L133: 60.58592331 | M133: 60.58592331 | N133: 60.58592331 | O133: 60.58592331 | P133: 60.58592331 | Q133: 60.58592331 | R133: 60.58592331 | S133: 60.58592331 | T133: 60.58592331 | U133: =IF('OPFOK OUDERDIEREN'!$H$15="ja",L133-((E133-G133*95%-I133)/E133*L133)*$R$6,L133-((E133-G133*80%-I133)/E133*L133)*$R$6) -> 60.58592331 | V133: 60.58592331 | W133: 60.58592331
A134: 125 | B134: 1885.7 | E134: 3.447276733 | F134: 3.447276733 | G134: 0 | H134: 0 | I134: 0 | J134: 2.076624787 | K134: 1 | L134: 62.71021473 | M134: 62.71021473 | N134: 62.71021473 | O134: 62.71021473 | P134: 62.71021473 | Q134: 62.71021473 | R134: 62.71021473 | S134: 62.71021473 | T134: 62.71021473 | U134: =IF('OPFOK OUDERDIEREN'!$H$15="ja",L134-((E134-G134*95%-I134)/E134*L134)*$R$6,L134-((E134-G134*80%-I134)/E134*L134)*$R$6) -> 62.71021473 | V134: 62.71021473 | W134: 62.71021473
A135: 126 | B135: 1900 | E135: 3.50295235 | F135: 3.50295235 | G135: 0 | H135: 0 | I135: 0 | J135: 2.11518838 | K135: 1 | L135: 64.90637999 | M135: 64.90637999 | N135: 64.90637999 | O135: 64.90637999 | P135: 64.90637999 | Q135: 64.90637999 | R135: 64.90637999 | S135: 64.90637999 | T135: 64.90637999 | U135: =IF('OPFOK OUDERDIEREN'!$H$15="ja",L135-((E135-G135*95%-I135)/E135*L135)*$R$6,L135-((E135-G135*80%-I135)/E135*L135)*$R$6) -> 64.90637999 | V135: 64.90637999 | W135: 64.90637999
A136: 127 | B136: 1921.6 | E136: 3.588483993 | F136: 3.588483993 | G136: 0 | H136: 0 | I136: 0 | J136: 2.154468112 | K136: 1 | L136: 67.72596316 | M136: 67.72596316 | N136: 67.72596316 | O136: 67.72596316 | P136: 67.72596316 | Q136: 67.72596316 | R136: 67.72596316 | S136: 67.72596316 | T136: 67.72596316 | U136: =IF('OPFOK OUDERDIEREN'!$H$15="ja",L136-((E136-G136*95%-I136)/E136*L136)*$R$6,L136-((E136-G136*80%-I136)/E136*L136)*$R$6) -> 67.72596316 | V136: 67.72596316 | W136: 67.72596316
A137: 128 | B137: 1943 | E137: 3.67494587 | F137: 3.67494587 | G137: 0 | H137: 0 | I137: 0 | J137: 2.194477281 | K137: 1 | L137: 70.64576651 | M137: 70.64576651 | N137: 70.64576651 | O137: 70.64576651 | P137: 70.64576651 | Q137: 70.64576651 | R137: 70.64576651 | S137: 70.64576651 | T137: 70.64576651 | U137: =IF('OPFOK OUDERDIEREN'!$H$15="ja",L137-((E137-G137*95%-I137)/E137*L137)*$R$6,L137-((E137-G137*80%-I137)/E137*L137)*$R$6) -> 70.64576651 | V137: 70.64576651 | W137: 70.64576651
A138: 129 | B138: 1964.4 | E138: 3.76314458 | F138: 3.76314458 | G138: 0 | H138: 0 | I138: 0 | J138: 2.235229433 | K138: 1 | L138: 73.68466574 | M138: 73.68466574 | N138: 73.68466574 | O138: 73.68466574 | P138: 73.68466574 | Q138: 73.68466574 | R138: 73.68466574 | S138: 73.68466574 | T138: 73.68466574 | U138: =IF('OPFOK OUDERDIEREN'!$H$15="ja",L138-((E138-G138*95%-I138)/E138*L138)*$R$6,L138-((E138-G138*80%-I138)/E138*L138)*$R$6) -> 73.68466574 | V138: 73.68466574 | W138: 73.68466574
A139: 130 | B139: 1985.8 | E139: 3.853102703 | F139: 3.853102703 | G139: 0 | H139: 0 | I139: 0 | J139: 2.276738365 | K139: 1 | L139: 76.84715912 | M139: 76.84715912 | N139: 76.84715912 | O139: 76.84715912 | P139: 76.84715912 | Q139: =(((($J139)-$J$3)/1000*$F139*24*365*$K139))+(((($J139)-$J$3)/1000*$G139*24*365*$K139)*(1-95%)) -> 76.84715912 | R139: 76.84715912 | S139: 76.84715912 | T139: 76.84715912 | U139: =IF('OPFOK OUDERDIEREN'!$H$15="ja",L139-((E139-G139*95%-I139)/E139*L139)*$R$6,L139-((E139-G139*80%-I139)/E139*L139)*$R$6) -> 76.84715912 | V139: 76.84715912 | W139: 76.84715912
A140: 131 | B140: 2007.2 | E140: 3.94484282 | F140: 3.94484282 | G140: 0 | H140: 0 | I140: 0 | J140: 2.319018132 | K140: 1 | L140: 80.13789936 | M140: 80.13789936 | N140: 80.13789936 | O140: 80.13789936 | P140: 80.13789936 | Q140: 80.13789936 | R140: 80.13789936 | S140: 80.13789936 | T140: 80.13789936 | U140: =IF('OPFOK OUDERDIEREN'!$H$15="ja",L140-((E140-G140*95%-I140)/E140*L140)*$R$6,L140-((E140-G140*80%-I140)/E140*L140)*$R$6) -> 80.13789936 | V140: 80.13789936 | W140: 80.13789936
A141: 132 | B141: 2028.6 | E141: 4.03838751 | F141: 4.03838751 | G141: 0 | H141: 0 | I141: 0 | J141: 2.362083048 | K141: 1 | L141: 83.5616985 | M141: 83.5616985 | N141: 83.5616985 | O141: 83.5616985 | P141: 83.5616985 | Q141: 83.5616985 | R141: 83.5616985 | S141: 83.5616985 | T141: 83.5616985 | U141: =IF('OPFOK OUDERDIEREN'!$H$15="ja",L141-((E141-G141*95%-I141)/E141*L141)*$R$6,L141-((E141-G141*80%-I141)/E141*L141)*$R$6) -> 83.5616985 | V141: 83.5616985 | W141: 83.5616985
A142: 133 | B142: 2050 | E142: 4.133759353 | F142: 4.133759353 | G142: 0 | H142: 0 | I142: 0 | J142: 2.405947693 | K142: 1 | L142: 87.12353292 | M142: 87.12353292 | N142: 87.12353292 | O142: 87.12353292 | P142: 87.12353292 | Q142: 87.12353292 | R142: 87.12353292 | S142: 87.12353292 | T142: 87.12353292 | U142: =IF('OPFOK OUDERDIEREN'!$H$15="ja",L142-((E142-G142*95%-I142)/E142*L142)*$R$6,L142-((E142-G142*80%-I142)/E142*L142)*$R$6) -> 87.12353292 | V142: 87.12353292 | W142: 87.12353292
A143: 134 | B143: 2071.6 | E143: 4.231898339 | F143: 4.231898339 | G143: 0 | H143: 0 | I143: 0 | J143: 2.450626919 | K143: 1 | L143: 90.84824294 | M143: 90.84824294 | N143: 90.84824294 | O143: 90.84824294 | P143: 90.84824294 | Q143: 90.84824294 | R143: 90.84824294 | S143: 90.84824294 | T143: 90.84824294 | U143: =IF('OPFOK OUDERDIEREN'!$H$15="ja",L143-((E143-G143*95%-I143)/E143*L143)*$R$6,L143-((E143-G143*80%-I143)/E143*L143)*$R$6) -> 90.84824294 | V143: 90.84824294 | W143: 90.84824294
A144: 135 | B144: 2093 | E144: 4.331009834 | F144: 4.331009834 | G144: 0 | H144: 0 | I144: 0 | J144: 2.496135853 | K144: 1 | L144: 94.70251099 | M144: 94.70251099 | N144: 94.70251099 | O144: 94.70251099 | P144: 94.70251099 | Q144: 94.70251099 | R144: 94.70251099 | S144: 94.70251099 | T144: 94.70251099 | U144: =IF('OPFOK OUDERDIEREN'!$H$15="ja",L144-((E144-G144*95%-I144)/E144*L144)*$R$6,L144-((E144-G144*80%-I144)/E144*L144)*$R$6) -> 94.70251099 | V144: 94.70251099 | W144: 94.70251099
A145: 136 | B145: 2114.4 | E145: 4.432016434 | F145: 4.432016434 | G145: 0 | H145: 0 | I145: 0 | J145: 2.542489902 | K145: 1 | L145: 98.71080756 | M145: 98.71080756 | N145: 98.71080756 | O145: 98.71080756 | P145: 98.71080756 | Q145: 98.71080756 | R145: 98.71080756 | S145: 98.71080756 | T145: 98.71080756 | U145: =IF('OPFOK OUDERDIEREN'!$H$15="ja",L145-((E145-G145*95%-I145)/E145*L145)*$R$6,L145-((E145-G145*80%-I145)/E145*L145)*$R$6) -> 98.71080756 | V145: 98.71080756 | W145: 98.71080756
A146: 137 | B146: 2135.8 | E146: 4.534940718 | F146: 4.534940718 | G146: 0 | H146: 0 | I146: 0 | J146: 2.589704761 | K146: 1 | L146: 102.8788203 | M146: 102.8788203 | N146: 102.8788203 | O146: 102.8788203 | P146: 102.8788203 | Q146: 102.8788203 | R146: 102.8788203 | S146: 102.8788203 | T146: 102.8788203 | U146: =IF('OPFOK OUDERDIEREN'!$H$15="ja",L146-((E146-G146*95%-I146)/E146*L146)*$R$6,L146-((E146-G146*80%-I146)/E146*L146)*$R$6) -> 102.8788203 | V146: 102.8788203 | W146: 102.8788203
A147: 138 | B147: 2157.2 | E147: 4.639805266 | F147: 4.639805266 | G147: 0 | H147: 0 | I147: 0 | J147: 2.637796415 | K147: 1 | L147: 107.2124285 | M147: 107.2124285 | N147: 107.2124285 | O147: 107.2124285 | P147: 107.2124285 | Q147: 107.2124285 | R147: 107.2124285 | S147: 107.2124285 | T147: 107.2124285 | U147: =IF('OPFOK OUDERDIEREN'!$H$15="ja",L147-((E147-G147*95%-I147)/E147*L147)*$R$6,L147-((E147-G147*80%-I147)/E147*L147)*$R$6) -> 107.2124285 | V147: 107.2124285 | W147: 107.2124285
A148: 139 | B148: 2178.6 | E148: 4.746632659 | F148: 4.746632659 | G148: 0 | H148: 0 | I148: 0 | J148: 2.686781146 | K148: 1 | L148: 111.7177091 | M148: 111.7177091 | N148: 111.7177091 | O148: 111.7177091 | P148: 111.7177091 | Q148: 111.7177091 | R148: 111.7177091 | S148: 111.7177091 | T148: 111.7177091 | U148: =IF('OPFOK OUDERDIEREN'!$H$15="ja",L148-((E148-G148*95%-I148)/E148*L148)*$R$6,L148-((E148-G148*80%-I148)/E148*L148)*$R$6) -> 111.7177091 | V148: 111.7177091 | W148: 111.7177091
A149: 140 | B149: 2200 | E149: 4.855445476 | F149: 4.855445476 | G149: 0 | H149: 0 | I149: 0 | J149: 2.73667554 | K149: 1 | L149: 116.4009429 | M149: 116.4009429 | N149: 116.4009429 | O149: 116.4009429 | P149: 116.4009429 | Q149: 116.4009429 | R149: 116.4009429 | S149: 116.4009429 | T149: 116.4009429 | U149: =IF('OPFOK OUDERDIEREN'!$H$15="ja",L149-((E149-G149*95%-I149)/E149*L149)*$R$6,L149-((E149-G149*80%-I149)/E149*L149)*$R$6) -> 116.4009429 | V149: 116.4009429 | W149: 116.4009429
Q151: =I50/(E50-G50)*(L50-(L50-O50)/80%)*5% -> 0
E152: =AVERAGE(E10:E51) -> 0.4476368141 | P152: =IF(R$5<E5,R$5/E47*(L47-(L47-O47)/80%)*95%,E$5/E47*(L47-(L47-O47)/80%)*95%) -> 0 | Q152: =L51-I51/(E51)*(L51-(L51-O51)/80%)*95% -> 3.140423366 | R152: =(L45-(L45-O45)/80%) -> 2.443611137 | S152: =5%*R152 -> 0.1221805569
D153: totaal reductie debiet | F153: 0 | P153: =L51-R$5/E51*L51*95% -> 3.140423366 | Q153: =E49/(E49-G49)*(L49-(L49-O49)/80%)*(1-95%) -> 0.1445797567 | R153: =I51/(E51-G51) -> 0
E154: =SUM(E10:E51) -> 18.80074619 | F154: =SUM(F10:F51) -> 18.80074619 | G154: =SUM(G10:G51) -> 0 | K154: gem (- leeg) | L154: =AVERAGE(L10:L149) -> 22.15214723 | M154: =AVERAGE(M10:M149) -> 22.15214723 | N154: =AVERAGE(N10:N149) -> 22.15214723 | O154: 22.15214723 | P154: 22.15214723 | Q154: 22.15214723 | R154: 22.15214723 | S154: 22.15214723 | T154: 22.15214723 | U154: 22.15214723 | V154: 22.15214723 | W154: 22.15214723
F155: =F154/$E$154 -> 1 | G155: =G154/$E$154 -> 0 | K155: gem (+ leeg) | L155: =L154*0.81 -> 17.94323926 | M155: =M154*0.81 -> 17.94323926 | N155: 17.94323926 | O155: =O154*0.81 -> 17.94323926 | P155: 17.94323926 | Q155: 17.94323926 | R155: =R154*0.81 -> 17.94323926 | S155: 17.94323926 | T155: 17.94323926 | U155: 17.94323926 | V155: 17.94323926 | W155: 17.94323926
D156: TOTAAL DEBIET (hoofd en WW) | K156: reductie | L156: =1-(L155/$L$155) -> 0 | M156: 0 | N156: 0 | O156: =1-(O155/$L$155) -> 0 | P156: =1-(P155/($L$155)) -> 0 | Q156: 0 | R156: =1-(R155/$L$155) -> 0 | S156: =1-(S155/$L$155) -> 0 | T156: =1-(T155/$L$155) -> 0 | U156: 0 | V156: 0 | W156: =1-(W155/$L$155) -> 0
P157: =M156-P156 -> 0
O158: =O51+P51 -> 6.280846732 | P158: =(L51-I51/(E51-G51)*(L51-(L51-O51)/80%))*95% -> 2.983402198
P159: =(L51-I51/(E51-G51))*(1-95%) -> 0.1570211683
P160: =(L51-I51/(E51-G51))*5% -> 0.1570211683
P161: =(O51-(L51-O51)/80%) -> 3.140423366
P162: =I51/(E51-G51) -> 0
N163: =20%*O163 -> 0 | O163: =L51-O51 -> 0
N164: =O51-N163 -> 3.140423366 | O164: =O163/95% -> 0
N165: =95%*N164 -> 2.983402198 | O165: =L51-O164 -> 3.140423366
N166: =L51-P51 -> 0 | O166: =5%*O165 -> 0.1570211683
O167: =5.95/L51 -> 1.894649003
N168: =95%*P51 -> 2.983402198

Sheet Max waarden (hidden)
A1: Overzicht maximale waarden rekenmodel reducties fijnstof
B3: waarden in m3/dier/uur
A5: Maximale ventilatie:
A6: Opfok leghennen | B6: 1.73
A7: Leghennen | B7: 8.01
A8: Opfok vleeskuikenouderdieren | B8: 4.86
A9: Vleeskuikenouderdieren | B9: 15
A10: Vleeskuikens | B10: 6.176199161
A11: Vleeskalkoenen hennen | B11: 12.35
A12: Vleeskalkoenen hanen | B12: 24.84
A13: Vleeseenden | B13: 12.56
A16: Debiet door droogtunnel | C16: rekenwaarde | D16: in overzicht
A17: Opfok leghennen | B17: bandendroger (30%) | C17: 0.807 | D17: 0.85 | E17: Deze waarden staan (nog) niet genoemd in de beschrijvingen.
B18: platendroger (55%) | C18: 0.838 | D18: 0.85
A19: Leghennen | B19: bandendroger (30%) | C19: 1.835 | D19: 2
B20: platendroger (55%) | C20: 1.899 | D20: 2
A23: Debiet door warmtewisselaar
A24: ZONDER FILTERS
A25: Reductiepercentage op stalniveau: | B25: 0.13 | D25: 0.31 | F25: 0.37 | H25: 0.5
B26: rekenwaarde | C26: in overzicht | D26: rekenwaarde | E26: in overzicht | F26: rekenwaarde | G26: in overzicht | H26: rekenwaarde | I26: in overzicht
A27: Opfok leghennen | B27: 0.175 | C27: 0.2 | D27: 0.434 | E27: 0.4 | F27: 0.527 | G27: 0.55 | H27: 0.745 | I27: 0.8
A28: Leghennen | B28: 0.439 | C28: 0.4 | D28: 1.048 | E28: 1 | F28: 1.252 | G28: 1.25 | H28: 1.708 | I28: 1.8
A29: Opfok vleeskuikenouderdieren | B29: 0.42 | C29: 0.4 | D29: 1.047 | E29: 1 | F29: 1.279 | G29: 1.3 | H29: 1.84 | I29: 1.9
A30: Vleeskuikenouderdieren | B30: 0.595 | C30: 0.6 | D30: 1.485 | E30: 1.5 | F30: 1.845 | G30: 1.85 | H30: 2.845 | I30: 2.9
A31: Vleeskuikens | B31: 0.357 | C31: 0.35 | D31: 1.001 | E31: 1 | F31: 1.27 | G31: 1.3 | H31: 1.975 | I31: 2
A32: Vleeskalkoenen hennen | B32: 1.245 | C32: 1.1 | D32: 3.17 | E32: 3 | F32: 3.86 | G32: 3.85 | H32: 5.5 | I32: 5.6
A33: Vleeskalkoenen hanen | B33: 2.695 | C33: 2.5 | D33: 6.75 | E33: 6.2 | F33: 8.175 | G33: 8.2 | H33: 11.5 | I33: 11.7
A34: Vleeseenden | B34: 0.88 | C34: 0.8 | D34: 2.485 | E34: 2.3 | F34: 3.12 | G34: 3.15 | H34: 4.73 | I34: 4.8
C35: =C32/B32 -> 0.8835341365 | E35: =E32/D32 -> 0.9463722397 | G35: =G32/F32 -> 0.9974093264 | I35: =I32/H32 -> 1.018181818
A36: MET FILTERS
A37: Reductiepercentage op stalniveau: | B37: 0.13 | D37: 0.31 | F37: 0.37 | H37: 0.5
B38: rekenwaarde | C38: in overzicht | D38: rekenwaarde | E38: in overzicht | F38: rekenwaarde | G38: in overzicht | H38: rekenwaarde | I38: in overzicht
A39: Opfok leghennen | B39: 0.141 | C39: 0.15 | D39: 0.346 | E39: 0.35 | F39: 0.418 | G39: 0.4 | H39: 0.581 | I39: 0.6
A40: Leghennen | B40: 0.355 | C40: 0.35 | D40: 0.847 | E40: 0.85 | F40: 1.012 | G40: 1 | H40: 1.369 | I40: 1.4
A41: Opfok vleeskuikenouderdieren | B41: 0.337 | C41: 0.35 | D41: 0.831 | E41: 0.85 | F41: 1.008 | G41: 1.1 | H41: 1.417 | I41: 1.45
A42: Vleeskuikenouderdieren | B42: 0.48 | C42: 0.5 | D42: 1.161 | E42: 1.2 | F42: 1.422 | G42: 1.5 | H42: 2.075 | I42: 2.1
A43: Vleeskuikens | B43: 0.285 | C43: 0.3 | D43: 0.765 | E43: 0.75 | F43: 0.958 | G43: 1 | H43: 1.435 | I43: 1.45
A44: Vleeskalkoenen hennen | B44: 0.999 | C44: 0.9 | D44: 2.51 | E44: 2.5 | F44: 3.045 | G44: 3 | H44: 4.27 | I44: 4.3
A45: Vleeskalkoenen hanen | B45: 2.165 | C45: 2.2 | D45: 5.358 | E45: 5.3 | F45: 6.475 | G45: 6.2 | H45: 9.01 | I45: 9
A46: Vleeseenden | B46: 0.692 | C46: 0.7 | D46: 1.91 | E46: 1.9 | F46: 2.375 | G46: 2.3 | H46: 3.51 | I46: 3.6

Sheet Reductietechnieken (hidden)
B1: serie alles voetnoot 2 | E1: A | F1: B | G1: C | H1: D | I1: E | J1: F | K1: G | L1: H | M1: I | N1: J | O1: K | P1: L | Q1: M | R1: N | S1: O | T1: P | U1: Q | V1: R | W1: S | X1: T | Y1: U | Z1: V | AA1: W | AB1: X | AC1: Y
E2: =+D3 -> 0.65 | F2: =+D4 -> 0.4 | G2: =+D5 -> 0.25 | H2: =+D6 -> 0.2 | I2: =+D8 -> 0.45 | J2: =+D9 -> 0.7 | K2: =+D10 -> 0.46 | L2: =+D11 -> 0.51 | M2: =+D12 -> 0.67 | N2: =+D13 -> 0.6 | O2: =+D14 -> 0.43 | P2: =+D15 -> 0.69 | Q2: =+D16 -> 0.69 | R2: =+D17 -> 0.87 | S2: =+D18 -> 0.87 | T2: =+D19 -> 0.85 | U2: =+D20 -> 0.7 | V2: =+D21 -> 0.8 | W2: =+D22 -> 0.63 | X2: =+D23 -> 0.63 | Y2: =+D24 -> 0.5 | Z2: =+D25 -> 0.5
A3: A | B3: chemische wasser | C3: 0.35 | D3: =+(1-C3) -> 0.65 | E3: =1-($D$3*E2) -> 0.5775 | F3: =1-($D$3*F2) -> 0.74 | G3: 0.8375 | H3: 0.87 | I3: 0.7075 | J3: 0.545 | K3: 0.701 | L3: 0.6685 | M3: 0.5645 | N3: 0.61 | O3: 0.7205 | P3: 0.5515 | Q3: 0.5515 | R3: 0.4345 | S3: 0.4345 | T3: 0.4475 | U3: 0.545 | V3: 0.48 | W3: 0.5905 | X3: 0.5905 | Y3: 0.675 | Z3: 0.675
A4: B | B4: bio wasser 60% | C4: 0.6 | D4: =+(1-C4) -> 0.4 | E4: =1-+$D$4*E2 -> 0.74 | F4: =1-+$D$4*F2 -> 0.84 | G4: 0.9 | H4: 0.92 | I4: 0.82 | J4: 0.72 | K4: 0.816 | L4: 0.796 | M4: 0.732 | N4: 0.76 | O4: 0.828 | P4: 0.724 | Q4: 0.724 | R4: 0.652 | S4: 0.652 | T4: 0.66 | U4: 0.72 | V4: 0.68 | W4: 0.748 | X4: 0.748 | Y4: 0.8 | Z4: 0.8
A5: C | B5: bio wasser 75% | C5: 0.75 | D5: 0.25 | E5: =1-+$D$5*E2 -> 0.8375 | F5: =1-+$D$5*F2 -> 0.9 | G5: 0.9375 | H5: 0.95 | I5: 0.8875 | J5: 0.825 | K5: 0.885 | L5: 0.8725 | M5: 0.8325 | N5: 0.85 | O5: 0.8925 | P5: 0.8275 | Q5: 0.8275 | R5: 0.7825 | S5: 0.7825 | T5: 0.7875 | U5: 0.825 | V5: 0.8 | W5: 0.8425 | X5: 0.8425 | Y5: 0.875 | Z5: 0.875
A6: D | B6: biofilter | C6: 0.8 | D6: 0.2 | E6: =1-+$D$6*E2 -> 0.87 | F6: =1-+$D$6*F2 -> 0.92 | G6: 0.95 | H6: 0.96 | I6: 0.91 | J6: 0.86 | K6: 0.908 | L6: 0.898 | M6: 0.866 | N6: 0.88 | O6: 0.914 | P6: 0.862 | Q6: 0.862 | R6: 0.826 | S6: 0.826 | T6: 0.83 | U6: 0.86 | V6: 0.84 | W6: 0.874 | X6: 0.874 | Y6: 0.9 | Z6: 0.9
B7: GEEN DROOGTUNNEL
A8: E | B8: DROOGTUNNEL (PLATEN) 55% | C8: 0.55 | D8: 0.45 | E8: =1-+$D$8*E2 -> 0.7075 | F8: =1-+$D$8*F2 -> 0.82 | G8: 0.8875 | H8: 0.91 | I8: 0.7975 | J8: 0.685 | K8: 0.793 | L8: 0.7705 | M8: 0.6985 | N8: 0.73 | O8: 0.8065 | P8: 0.6895 | Q8: 0.6895 | R8: 0.6085 | S8: 0.6085 | T8: 0.6175 | U8: 0.685 | V8: 0.64 | W8: 0.7165 | X8: 0.7165 | Y8: 0.775 | Z8: 0.775
A9: F | B9: DROOGTUNNEL (BANDEN) 30% | C9: 0.3 | D9: 0.7 | E9: =1-+$D$9*E2 -> 0.545 | F9: =1-+$D$9*F2 -> 0.72 | G9: 0.825 | H9: 0.86 | I9: 0.685 | J9: 0.51 | K9: 0.678 | L9: 0.643 | M9: 0.531 | N9: 0.58 | O9: 0.699 | P9: 0.517 | Q9: 0.517 | R9: 0.391 | S9: 0.391 | T9: 0.405 | U9: 0.51 | V9: 0.44 | W9: 0.559 | X9: 0.559 | Y9: 0.65 | Z9: 0.65
A10: G | B10: OLIEFILM | C10: 0.54 | D10: 0.46 | E10: =1-+$D$10*E2 -> 0.701 | F10: =1-+$D$10*F2 -> 0.816 | G10: 0.885 | H10: 0.908 | I10: 0.793 | J10: 0.678 | K10: 0.7884 | L10: 0.7654 | M10: 0.6918 | N10: 0.724 | O10: 0.8022 | P10: 0.6826 | Q10: 0.6826 | R10: 0.5998 | S10: 0.5998 | T10: 0.609 | U10: 0.678 | V10: 0.632 | W10: 0.7102 | X10: 0.7102 | Y10: 0.77 | Z10: 0.77
A11: H | B11: negatieve ionisatie | C11: 0.49 | D11: 0.51 | E11: =1-+$D$11*E2 -> 0.6685 | F11: =1-+$D$11*F2 -> 0.796 | G11: 0.8725 | H11: 0.898 | I11: 0.7705 | J11: 0.643 | K11: 0.7654 | L11: 0.7399 | M11: 0.6583 | N11: 0.694 | O11: 0.7807 | P11: 0.6481 | Q11: 0.6481 | R11: 0.5563 | S11: 0.5563 | T11: 0.5665 | U11: 0.643 | V11: 0.592 | W11: 0.6787 | X11: 0.6787 | Y11: 0.745 | Z11: 0.745
A12: I | B12: water wasser | C12: 0.33 | D12: 0.67 | E12: =1-+$D$12*E2 -> 0.5645 | F12: =1-+$D$12*F2 -> 0.732 | G12: 0.8325 | H12: 0.866 | I12: 0.6985 | J12: 0.531 | K12: 0.6918 | L12: 0.6583 | M12: 0.5511 | N12: 0.598 | O12: 0.7119 | P12: 0.5377 | Q12: 0.5377 | R12: 0.4171 | S12: 0.4171 | T12: 0.4305 | U12: 0.531 | V12: 0.464 | W12: 0.5779 | X12: 0.5779 | Y12: 0.665 | Z12: 0.665
A13: J | B13: droogfilter | C13: 0.4 | D13: 0.6 | E13: =1-+$D$13*E2 -> 0.61 | F13: =1-+$D$13*F2 -> 0.76 | G13: 0.85 | H13: 0.88 | I13: 0.73 | J13: 0.58 | K13: 0.724 | L13: 0.694 | M13: 0.598 | N13: 0.64 | O13: 0.742 | P13: 0.586 | Q13: 0.586 | R13: 0.478 | S13: 0.478 | T13: 0.49 | U13: 0.58 | V13: 0.52 | W13: 0.622 | X13: 0.622 | Y13: 0.7 | Z13: 0.7
A14: K | B14: ionisatiefilter | C14: 0.57 | D14: 0.43 | E14: =1-+$D$14*E2 -> 0.7205 | F14: =1-+$D$14*F2 -> 0.828 | G14: 0.8925 | H14: 0.914 | I14: 0.8065 | J14: 0.699 | K14: 0.8022 | L14: 0.7807 | M14: 0.7119 | N14: 0.742 | O14: 0.8151 | P14: 0.7033 | Q14: 0.7033 | R14: 0.6259 | S14: 0.6259 | T14: 0.6345 | U14: 0.699 | V14: 0.656 | W14: 0.7291 | X14: 0.7291 | Y14: 0.785 | Z14: 0.785
A15: L | B15: warmtewisselaar zonder stof 31% | C15: 0.31 | D15: 0.69 | E15: =1-+$D$15*E2 -> 0.5515 | F15: =1-+$D$15*F2 -> 0.724 | G15: 0.8275 | H15: 0.862 | I15: 0.6895 | J15: 0.517 | K15: 0.6826 | L15: 0.6481 | M15: 0.5377 | N15: 0.586 | O15: 0.7033 | P15: 0.5239 | Q15: 0.5239 | R15: 0.3997 | S15: 0.3997 | T15: 0.4135 | U15: 0.517 | V15: 0.448 | W15: 0.5653 | X15: 0.5653 | Y15: 0.655 | Z15: 0.655
A16: M | B16: warmtewisselaar met stof 31% | C16: 0.31 | D16: 0.69 | E16: =1-+$D$16*E2 -> 0.5515 | F16: =1-+$D$16*F2 -> 0.724 | G16: 0.8275 | H16: 0.862 | I16: 0.6895 | J16: 0.517 | K16: 0.6826 | L16: 0.6481 | M16: 0.5377 | N16: 0.586 | O16: 0.7033 | P16: 0.5239 | Q16: 0.5239 | R16: 0.3997 | S16: 0.3997 | T16: 0.4135 | U16: 0.517 | V16: 0.448 | W16: 0.5653 | X16: 0.5653 | Y16: 0.655 | Z16: 0.655
A17: N | B17: warmtewisselaar zonder stof 13% | C17: 0.13 | D17: 0.87 | E17: =1-+$D$17*E2 -> 0.4345 | F17: =1-+$D$17*F2 -> 0.652 | G17: 0.7825 | H17: 0.826 | I17: 0.6085 | J17: 0.391 | K17: 0.5998 | L17: 0.5563 | M17: 0.4171 | N17: 0.478 | O17: 0.6259 | P17: 0.3997 | Q17: 0.3997 | R17: 0.2431 | S17: 0.2431 | T17: 0.2605 | U17: 0.391 | V17: 0.304 | W17: 0.4519 | X17: 0.4519 | Y17: 0.565 | Z17: 0.565
A18: O | B18: warmtewisselaar met stof 13% | C18: 0.13 | D18: 0.87 | E18: =1-+$D$18*E2 -> 0.4345 | F18: =1-+$D$18*F2 -> 0.652 | G18: 0.7825 | H18: 0.826 | I18: 0.6085 | J18: 0.391 | K18: 0.5998 | L18: 0.5563 | M18: 0.4171 | N18: 0.478 | O18: 0.6259 | P18: 0.3997 | Q18: 0.3997 | R18: 0.2431 | S18: 0.2431 | T18: 0.2605 | U18: 0.391 | V18: 0.304 | W18: 0.4519 | X18: 0.4519 | Y18: 0.565 | Z18: 0.565
A19: P | B19: oliefim | C19: 0.15 | D19: 0.85 | E19: =1-+$D$19*E2 -> 0.4475 | F19: =1-+$D$19*F2 -> 0.66 | G19: 0.7875 | H19: 0.83 | I19: 0.6175 | J19: 0.405 | K19: 0.609 | L19: 0.5665 | M19: 0.4305 | N19: 0.49 | O19: 0.6345 | P19: 0.4135 | Q19: 0.4135 | R19: 0.2605 | S19: 0.2605 | T19: 0.2775 | U19: 0.405 | V19: 0.32 | W19: 0.4645 | X19: 0.4645 | Y19: 0.575 | Z19: 0.575
A20: Q | B20: oliefilm | C20: 0.3 | D20: 0.7 | E20: =1-+$D$20*E2 -> 0.545 | F20: =1-+$D$20*F2 -> 0.72 | G20: 0.825 | H20: 0.86 | I20: 0.685 | J20: 0.51 | K20: 0.678 | L20: 0.643 | M20: 0.531 | N20: 0.58 | O20: 0.699 | P20: 0.517 | Q20: 0.517 | R20: 0.391 | S20: 0.391 | T20: 0.405 | U20: 0.51 | V20: 0.44 | W20: 0.559 | X20: 0.559 | Y20: 0.65 | Z20: 0.65
A21: R | B21: strooiselschuif | C21: 0.2 | D21: 0.8 | E21: =1-+$D$21*E2 -> 0.48 | F21: =1-+$D$21*F2 -> 0.68 | G21: 0.8 | H21: 0.84 | I21: 0.64 | J21: 0.44 | K21: 0.632 | L21: 0.592 | M21: 0.464 | N21: 0.52 | O21: 0.656 | P21: 0.448 | Q21: 0.448 | R21: 0.304 | S21: 0.304 | T21: 0.32 | U21: 0.44 | V21: 0.36 | W21: 0.496 | X21: 0.496 | Y21: 0.6 | Z21: 0.6
A22: S | B22: warmtewisselaar zonder stof 37% | C22: 0.37 | D22: 0.63 | E22: =1-+$D$22*E2 -> 0.5905 | F22: =1-+$D$22*F2 -> 0.748 | G22: 0.8425 | H22: 0.874 | I22: 0.7165 | J22: 0.559 | K22: 0.7102 | L22: 0.6787 | M22: 0.5779 | N22: 0.622 | O22: 0.7291 | P22: 0.5653 | Q22: 0.5653 | R22: 0.4519 | S22: 0.4519 | T22: 0.4645 | U22: 0.559 | V22: 0.496 | W22: 0.6031 | X22: 0.6031 | Y22: 0.685 | Z22: 0.685
A23: T | B23: warmtewisselaar met stof 37% | C23: 0.37 | D23: 0.63 | E23: =1-+$D$23*E2 -> 0.5905 | F23: =1-+$D$23*F2 -> 0.748 | G23: 0.8425 | H23: 0.874 | I23: 0.7165 | J23: 0.559 | K23: 0.7102 | L23: 0.6787 | M23: 0.5779 | N23: 0.622 | O23: 0.7291 | P23: 0.5653 | Q23: 0.5653 | R23: 0.4519 | S23: 0.4519 | T23: 0.4645 | U23: 0.559 | V23: 0.496 | W23: 0.6031 | X23: 0.6031 | Y23: 0.685 | Z23: 0.685
A24: U | B24: warmtewisselaar zonder stof 50% | C24: 0.5 | D24: 0.5 | E24: =1-+$D$24*E2 -> 0.675 | F24: =1-+$D$24*F2 -> 0.8 | G24: 0.875 | H24: 0.9 | I24: 0.775 | J24: 0.65 | K24: 0.77 | L24: 0.745 | M24: 0.665 | N24: 0.7 | O24: 0.785 | P24: 0.655 | Q24: 0.655 | R24: 0.565 | S24: 0.565 | T24: 0.575 | U24: 0.65 | V24: 0.6 | W24: 0.685 | X24: 0.685 | Y24: 0.75 | Z24: 0.75
A25: V | B25: warmtewisselaar met stof 50% | C25: 0.5 | D25: 0.5 | E25: =1-+$D$25*E2 -> 0.675 | F25: =1-+$D$25*F2 -> 0.8 | G25: 0.875 | H25: 0.9 | I25: 0.775 | J25: 0.65 | K25: 0.77 | L25: 0.745 | M25: 0.665 | N25: 0.7 | O25: 0.785 | P25: 0.655 | Q25: 0.655 | R25: 0.565 | S25: 0.565 | T25: 0.575 | U25: 0.65 | V25: 0.6 | W25: 0.685 | X25: 0.685 | Y25: 0.75 | Z25: 0.75
B28: percentages berekend door 1 x (1-%)x(1-%)
B29: rood | C29: afwijkend
B30: paars | C30: 1% afwijkend
B31: blauw | C31: kan niet gecombineerd
B32: GEEN TECHNIEK
B33: CHEMISCHE WASSER 35% | C33: ALLE VENTILATIELUCHT
B34: CHEMISCHE WASSER 70%
B35: BIO WASSER 60% | C35: DEEL VENTILATIELUCHT
B36: BIO WASSER 75%
B37: BIOFILTER | C37: GEEN TECHNIEK
B38: WATERLUCHTWASSYSTEEM | C38: WATERLUCHTWASSYSTEEM
B39: DROOGFILTERWAND | C39: DROOGFILTERWAND
B40: IONISATIEFILTER | C40: IONISATIEFILTER
B41: LUCHTCONDITIONERINGSUNIT
B42: WARMTEWISSELAAR 13% | C42: ALLE VENTILATIELUCHT
B43: WARMTEWISSELAAR 31% | C43: 75% VENTILATIE
B44: WARMTEWISSELAAR 37% | C44: 50% VENTILATIE
B45: WARMTEWISSELAAR 50% | C45: 25% VENTILATIE
B46: ZONDER STOFFILTER
B47: MET STOFFILTER
B49: PARALLEL GESCHAKELD MET WARMTEWISSELAAR
B50: SERIE GESCHAKELD MET WARMTEWISSELAAR
B52: JA | C52: JA
B53: NEE | C53: NEE
C54: =IF('OPFOK OUDERDIEREN'!$L$20="geen techniek","GEEN TECHNIEK","JA") -> GEEN TECHNIEK
C55: NEE
